{"text_format":"1","workbook":"xlsx","n_sheets":6,"sheets":["Notes","Summary","Region (Local Office)","Trusts","Categories","BS"],"not_rendered":{"charts":0,"images":0,"macros":1,"external_links":1,"defined_names":14,"comments":0,"pivot_tables":0},"unopened":[],"bounds":{"document_bytes":16777216,"sheet_cells":100000,"rows_first":2000,"rows_last":500,"rows_between":2000,"halvings":0,"cell_chars":16384,"cell_head_chars":4096},"cells_cut":0,"cells_raw":0,"read":"whole","date_system":"1900"}

{"sheet":"Notes","index":0,"n_rows":2,"n_cols":8,"rows_kept":2,"cut":false,"hidden":false,"merged":[[1,1,1,4]]}
[]
[null,"Mental Health Friends and Family Test (FFT) data - December 2018",null,null,null,null,null,"  Show data for:"]

{"sheet":"Summary","index":1,"n_rows":12,"n_cols":10,"rows_kept":12,"cut":false,"hidden":false,"merged":[[2,1,3,1],[2,4,2,5],[2,6,2,7],[2,8,2,9]]}
[]
[]
[null,"FFT","Number of organisations submitting","Total responses to date","Responses",null,"Score (% recommend)",null,"Score (% not recommend)"]
[null,null,"2018-12-01","2018-12-01","2018-12-01","2018-11-26","2018-12-01","2018-11-26","2018-12-01","2018-11-26"]
[null,"Mental Health Overall",75,887000,17577,22587,0.88974227683905105,0.89489529375304377,4.1019514137793707E-2,3.5772789657767742E-2]
[null,"Primary Care",43,152239,3230,4573,0.94767801857585143,0.94576864202930244,1.7956656346749224E-2,1.9462059916903564E-2]
[null,"Secondary Care Community Services",57,329253,6565,8142,0.89550647372429548,0.90149840334070253,3.7014470677837016E-2,3.1196266273642841E-2]
[null,"Acute Services",53,144031,2629,3361,0.82959300114111834,0.82832490330258857,7.7976416888550781E-2,7.1407319250223145E-2]
[null,"Specialist Services",43,69359,1393,1989,0.88729361091170134,0.9120160884866767,4.6661880832735106E-2,2.6646556058320763E-2]
[null,"Secure and Forensic Services",17,33120,810,739,0.80864197530864201,0.8092016238159675,7.5308641975308649E-2,7.0365358592692828E-2]
[null,"Child and Adolescent Mental Health Services",47,104317,2165,2598,0.88175519630484989,0.87451886066204776,3.2794457274826792E-2,3.2717474980754425E-2]
[null,"Mental Health Other",32,54681,785,1185,0.91464968152866244,0.91139240506329111,2.2929936305732482E-2,2.9535864978902954E-2]

{"sheet":"Region (Local Office)","index":2,"n_rows":22,"n_cols":32,"rows_kept":22,"cut":false,"hidden":false,"merged":[[2,22,3,22],[2,23,3,23],[2,24,3,24],[2,25,3,25],[2,26,2,31],[2,12,3,12],[2,13,3,13],[2,14,3,14],[2,15,3,15],[2,16,2,21],[2,6,2,11],[2,0,3,0],[2,1,3,1],[2,2,3,2],[2,3,3,3],[2,4,3,4],[2,5,3,5]]}
[]
[]
["Region (LO) Code","Region (Local Office)","Total Responses","Total Eligible","Percentage Recommended","Percentage Not  Recommended","Breakdown of Responses",null,null,null,null,null,"Total Responses","Total Eligible","Percentage Recommended","Percentage Not  Recommended","Breakdown of Responses",null,null,null,null,null,"Total Responses","Total Eligible","Percentage Recommended","Percentage Not  Recommended","Breakdown of Responses"]
[null,null,null,null,null,null,"Extremely Likely","Likely","Neither","Unlikely","Extremely Unlikely","Don't Know",null,null,null,null,"Extremely Likely","Likely","Neither","Unlikely","Extremely Unlikely","Don't Know",null,null,null,null,"Extremely Likely","Likely","Neither","Unlikely","Extremely Unlikely","Don't Know"]
[null,"England (including Independent Sector Providers)",17577,659941,0.88974227683905105,4.1019514137793707E-2,10919,4720,773,326,395,444,{"$f":"SUM(M8:M22)","v":17577},{"$f":"SUM(N8:N22)","v":659941},{"$f":"SUM(Q5:R5)/M5","v":0.88974227683905105},{"$f":"SUM(T5:U5)/M5","v":4.1019514137793707E-2},10919,4720,773,326,395,444]
[null,"England (excluding Independent Sector Providers)",16842,646751,0.88843367771048565,4.1384633653960334E-2,10417,4546,745,312,385,437,{"$f":"SUM(M8:M21)","v":16842},{"$f":"SUM(N8:N21)","v":646751},0.88843367771048565,4.1384633653960334E-2,10417,4546,745,312,385,437]
[null,"Selection (excluding suppressed data)",{"$f":"SUBTOTAL(9,C8:C34)","v":17577},{"$f":"SUBTOTAL(9,D8:D34)","v":659941},{"$f":"IFERROR((G7+H7)/SUM(G7:L7), \"-\")","v":0.88974227683905105},{"$f":"IFERROR((J7+K7)/SUM(G7:L7), \"-\")","v":4.1019514137793707E-2},{"$f":"SUBTOTAL(9,G8:G34)","v":10919},4720,773,326,395,444,{"$f":"SUMIF(M8:M22,\"<>*\",C8:C22)","v":17577},{"$f":"SUMIF(N8:N22,\"<>*\",D8:D22)","v":659941},0.88974227683905105,4.1019514137793707E-2,10919,4720,773,326,395,444]
["Q72","NHS England Yorkshire & Humber",925,58494,0.90486486486486484,4.9729729729729728E-2,677,160,22,14,32,20,{"$f":"VLOOKUP($A8,[1]Sheet1!$A$29:$I$44,8,FALSE)","v":925},{"$f":"VLOOKUP($A8,[1]Sheet1!$A$29:$I$44,9,FALSE)","v":58494},{"$f":"SUM(Q8:R8)/M8","v":0.90486486486486484},{"$f":"SUM(T8:U8)/M8","v":4.9729729729729728E-2},{"$f":"VLOOKUP($A8,[1]Sheet1!$A$29:$I$44,2,FALSE)","v":677},{"$f":"VLOOKUP($A8,[1]Sheet1!$A$29:$I$44,3,FALSE)","v":160},{"$f":"VLOOKUP($A8,[1]Sheet1!$A$29:$I$44,4,FALSE)","v":22},{"$f":"VLOOKUP($A8,[1]Sheet1!$A$29:$I$44,5,FALSE)","v":14},{"$f":"VLOOKUP($A8,[1]Sheet1!$A$29:$I$44,6,FALSE)","v":32},{"$f":"VLOOKUP($A8,[1]Sheet1!$A$29:$I$44,7,FALSE)","v":20}]
["Q74","NHS England Cumbria & North East",2486,107769,0.87530168946098152,5.108608205953339E-2,1418,758,122,58,69,61,{"$f":"VLOOKUP($A9,[1]Sheet1!$A$29:$I$44,8,FALSE)","v":2486},{"$f":"VLOOKUP($A9,[1]Sheet1!$A$29:$I$44,9,FALSE)","v":107769},{"$f":"SUM(Q9:R9)/M9","v":0.87530168946098152},{"$f":"SUM(T9:U9)/M9","v":5.108608205953339E-2},{"$f":"VLOOKUP($A9,[1]Sheet1!$A$29:$I$44,2,FALSE)","v":1418},{"$f":"VLOOKUP($A9,[1]Sheet1!$A$29:$I$44,3,FALSE)","v":758},{"$f":"VLOOKUP($A9,[1]Sheet1!$A$29:$I$44,4,FALSE)","v":122},{"$f":"VLOOKUP($A9,[1]Sheet1!$A$29:$I$44,5,FALSE)","v":58},{"$f":"VLOOKUP($A9,[1]Sheet1!$A$29:$I$44,6,FALSE)","v":69},{"$f":"VLOOKUP($A9,[1]Sheet1!$A$29:$I$44,7,FALSE)","v":61}]
["Q75","NHS England Cheshire & Merseyside",717,32249,0.9191073919107392,1.9525801952580194E-2,403,256,35,7,7,9,{"$f":"VLOOKUP($A10,[1]Sheet1!$A$29:$I$44,8,FALSE)","v":717},{"$f":"VLOOKUP($A10,[1]Sheet1!$A$29:$I$44,9,FALSE)","v":32249},0.9191073919107392,1.9525801952580194E-2,{"$f":"VLOOKUP($A10,[1]Sheet1!$A$29:$I$44,2,FALSE)","v":403},{"$f":"VLOOKUP($A10,[1]Sheet1!$A$29:$I$44,3,FALSE)","v":256},{"$f":"VLOOKUP($A10,[1]Sheet1!$A$29:$I$44,4,FALSE)","v":35},{"$f":"VLOOKUP($A10,[1]Sheet1!$A$29:$I$44,5,FALSE)","v":7},{"$f":"VLOOKUP($A10,[1]Sheet1!$A$29:$I$44,6,FALSE)","v":7},{"$f":"VLOOKUP($A10,[1]Sheet1!$A$29:$I$44,7,FALSE)","v":9}]
["Q83","NHS England Greater Manchester",479,20938,0.81419624217119002,0.10855949895615867,314,76,21,35,17,16,{"$f":"VLOOKUP($A11,[1]Sheet1!$A$29:$I$44,8,FALSE)","v":479},{"$f":"VLOOKUP($A11,[1]Sheet1!$A$29:$I$44,9,FALSE)","v":20938},0.81419624217119002,0.10855949895615867,{"$f":"VLOOKUP($A11,[1]Sheet1!$A$29:$I$44,2,FALSE)","v":314},{"$f":"VLOOKUP($A11,[1]Sheet1!$A$29:$I$44,3,FALSE)","v":76},{"$f":"VLOOKUP($A11,[1]Sheet1!$A$29:$I$44,4,FALSE)","v":21},{"$f":"VLOOKUP($A11,[1]Sheet1!$A$29:$I$44,5,FALSE)","v":35},{"$f":"VLOOKUP($A11,[1]Sheet1!$A$29:$I$44,6,FALSE)","v":17},{"$f":"VLOOKUP($A11,[1]Sheet1!$A$29:$I$44,7,FALSE)","v":16}]
["Q84","NHS England Lancashire",293,26973,0.92150170648464169,3.4129692832764506E-2,188,82,10,5,5,3,{"$f":"VLOOKUP($A12,[1]Sheet1!$A$29:$I$44,8,FALSE)","v":293},{"$f":"VLOOKUP($A12,[1]Sheet1!$A$29:$I$44,9,FALSE)","v":26973},0.92150170648464169,3.4129692832764506E-2,{"$f":"VLOOKUP($A12,[1]Sheet1!$A$29:$I$44,2,FALSE)","v":188},{"$f":"VLOOKUP($A12,[1]Sheet1!$A$29:$I$44,3,FALSE)","v":82},{"$f":"VLOOKUP($A12,[1]Sheet1!$A$29:$I$44,4,FALSE)","v":10},{"$f":"VLOOKUP($A12,[1]Sheet1!$A$29:$I$44,5,FALSE)","v":5},{"$f":"VLOOKUP($A12,[1]Sheet1!$A$29:$I$44,6,FALSE)","v":5},{"$f":"VLOOKUP($A12,[1]Sheet1!$A$29:$I$44,7,FALSE)","v":3}]
["Q76","NHS England North Midlands",797,41894,0.89460476787954835,3.6386449184441658E-2,523,190,31,12,17,24,{"$f":"VLOOKUP($A13,[1]Sheet1!$A$29:$I$44,8,FALSE)","v":797},{"$f":"VLOOKUP($A13,[1]Sheet1!$A$29:$I$44,9,FALSE)","v":41894},0.89460476787954835,3.6386449184441658E-2,{"$f":"VLOOKUP($A13,[1]Sheet1!$A$29:$I$44,2,FALSE)","v":523},{"$f":"VLOOKUP($A13,[1]Sheet1!$A$29:$I$44,3,FALSE)","v":190},{"$f":"VLOOKUP($A13,[1]Sheet1!$A$29:$I$44,4,FALSE)","v":31},{"$f":"VLOOKUP($A13,[1]Sheet1!$A$29:$I$44,5,FALSE)","v":12},{"$f":"VLOOKUP($A13,[1]Sheet1!$A$29:$I$44,6,FALSE)","v":17},{"$f":"VLOOKUP($A13,[1]Sheet1!$A$29:$I$44,7,FALSE)","v":24}]
["Q77","NHS England West Midlands",869,45352,0.88607594936708856,2.5316455696202531E-2,519,251,38,11,11,39,{"$f":"VLOOKUP($A14,[1]Sheet1!$A$29:$I$44,8,FALSE)","v":869},{"$f":"VLOOKUP($A14,[1]Sheet1!$A$29:$I$44,9,FALSE)","v":45352},0.88607594936708856,2.5316455696202531E-2,{"$f":"VLOOKUP($A14,[1]Sheet1!$A$29:$I$44,2,FALSE)","v":519},{"$f":"VLOOKUP($A14,[1]Sheet1!$A$29:$I$44,3,FALSE)","v":251},{"$f":"VLOOKUP($A14,[1]Sheet1!$A$29:$I$44,4,FALSE)","v":38},{"$f":"VLOOKUP($A14,[1]Sheet1!$A$29:$I$44,5,FALSE)","v":11},{"$f":"VLOOKUP($A14,[1]Sheet1!$A$29:$I$44,6,FALSE)","v":11},{"$f":"VLOOKUP($A14,[1]Sheet1!$A$29:$I$44,7,FALSE)","v":39}]
["Q78","NHS England Central Midlands",1614,50850,0.91201982651796776,2.3543990086741014E-2,1023,449,69,18,20,35,{"$f":"VLOOKUP($A15,[1]Sheet1!$A$29:$I$44,8,FALSE)","v":1614},{"$f":"VLOOKUP($A15,[1]Sheet1!$A$29:$I$44,9,FALSE)","v":50850},0.91201982651796776,2.3543990086741014E-2,{"$f":"VLOOKUP($A15,[1]Sheet1!$A$29:$I$44,2,FALSE)","v":1023},{"$f":"VLOOKUP($A15,[1]Sheet1!$A$29:$I$44,3,FALSE)","v":449},{"$f":"VLOOKUP($A15,[1]Sheet1!$A$29:$I$44,4,FALSE)","v":69},{"$f":"VLOOKUP($A15,[1]Sheet1!$A$29:$I$44,5,FALSE)","v":18},{"$f":"VLOOKUP($A15,[1]Sheet1!$A$29:$I$44,6,FALSE)","v":20},{"$f":"VLOOKUP($A15,[1]Sheet1!$A$29:$I$44,7,FALSE)","v":35}]
["Q79","NHS England East",556,38687,0.89028776978417268,3.7769784172661872E-2,338,157,25,7,14,15,{"$f":"VLOOKUP($A16,[1]Sheet1!$A$29:$I$44,8,FALSE)","v":556},{"$f":"VLOOKUP($A16,[1]Sheet1!$A$29:$I$44,9,FALSE)","v":38687},0.89028776978417268,3.7769784172661872E-2,{"$f":"VLOOKUP($A16,[1]Sheet1!$A$29:$I$44,2,FALSE)","v":338},{"$f":"VLOOKUP($A16,[1]Sheet1!$A$29:$I$44,3,FALSE)","v":157},{"$f":"VLOOKUP($A16,[1]Sheet1!$A$29:$I$44,4,FALSE)","v":25},{"$f":"VLOOKUP($A16,[1]Sheet1!$A$29:$I$44,5,FALSE)","v":7},{"$f":"VLOOKUP($A16,[1]Sheet1!$A$29:$I$44,6,FALSE)","v":14},{"$f":"VLOOKUP($A16,[1]Sheet1!$A$29:$I$44,7,FALSE)","v":15}]
["Q85","NHS England South West South",1046,19972,0.91491395793499042,2.1988527724665391E-2,714,243,46,5,18,20,{"$f":"VLOOKUP($A17,[1]Sheet1!$A$29:$I$44,8,FALSE)","v":1046},{"$f":"VLOOKUP($A17,[1]Sheet1!$A$29:$I$44,9,FALSE)","v":19972},0.91491395793499042,2.1988527724665391E-2,{"$f":"VLOOKUP($A17,[1]Sheet1!$A$29:$I$44,2,FALSE)","v":714},{"$f":"VLOOKUP($A17,[1]Sheet1!$A$29:$I$44,3,FALSE)","v":243},{"$f":"VLOOKUP($A17,[1]Sheet1!$A$29:$I$44,4,FALSE)","v":46},{"$f":"VLOOKUP($A17,[1]Sheet1!$A$29:$I$44,5,FALSE)","v":5},{"$f":"VLOOKUP($A17,[1]Sheet1!$A$29:$I$44,6,FALSE)","v":18},{"$f":"VLOOKUP($A17,[1]Sheet1!$A$29:$I$44,7,FALSE)","v":20}]
["Q86","NHS England South West North",1091,16665,0.85976168652612284,4.6746104491292392E-2,692,246,59,22,29,43,{"$f":"VLOOKUP($A18,[1]Sheet1!$A$29:$I$44,8,FALSE)","v":1091},{"$f":"VLOOKUP($A18,[1]Sheet1!$A$29:$I$44,9,FALSE)","v":16665},0.85976168652612284,4.6746104491292392E-2,{"$f":"VLOOKUP($A18,[1]Sheet1!$A$29:$I$44,2,FALSE)","v":692},{"$f":"VLOOKUP($A18,[1]Sheet1!$A$29:$I$44,3,FALSE)","v":246},{"$f":"VLOOKUP($A18,[1]Sheet1!$A$29:$I$44,4,FALSE)","v":59},{"$f":"VLOOKUP($A18,[1]Sheet1!$A$29:$I$44,5,FALSE)","v":22},{"$f":"VLOOKUP($A18,[1]Sheet1!$A$29:$I$44,6,FALSE)","v":29},{"$f":"VLOOKUP($A18,[1]Sheet1!$A$29:$I$44,7,FALSE)","v":43}]
["Q87","NHS England Hampshire, Isle Of Wight & Thames Valley",1520,26030,0.90921052631578947,4.4078947368421051E-2,1019,363,57,27,40,14,{"$f":"VLOOKUP($A19,[1]Sheet1!$A$29:$I$44,8,FALSE)","v":1520},{"$f":"VLOOKUP($A19,[1]Sheet1!$A$29:$I$44,9,FALSE)","v":26030},0.90921052631578947,4.4078947368421051E-2,{"$f":"VLOOKUP($A19,[1]Sheet1!$A$29:$I$44,2,FALSE)","v":1019},{"$f":"VLOOKUP($A19,[1]Sheet1!$A$29:$I$44,3,FALSE)","v":363},{"$f":"VLOOKUP($A19,[1]Sheet1!$A$29:$I$44,4,FALSE)","v":57},{"$f":"VLOOKUP($A19,[1]Sheet1!$A$29:$I$44,5,FALSE)","v":27},{"$f":"VLOOKUP($A19,[1]Sheet1!$A$29:$I$44,6,FALSE)","v":40},{"$f":"VLOOKUP($A19,[1]Sheet1!$A$29:$I$44,7,FALSE)","v":14}]
["Q88","NHS England Kent, Surrey & Sussex",897,35026,0.91415830546265331,3.3444816053511704E-2,545,275,35,12,18,12,{"$f":"VLOOKUP($A20,[1]Sheet1!$A$29:$I$44,8,FALSE)","v":897},{"$f":"VLOOKUP($A20,[1]Sheet1!$A$29:$I$44,9,FALSE)","v":35026},0.91415830546265331,3.3444816053511704E-2,{"$f":"VLOOKUP($A20,[1]Sheet1!$A$29:$I$44,2,FALSE)","v":545},{"$f":"VLOOKUP($A20,[1]Sheet1!$A$29:$I$44,3,FALSE)","v":275},{"$f":"VLOOKUP($A20,[1]Sheet1!$A$29:$I$44,4,FALSE)","v":35},{"$f":"VLOOKUP($A20,[1]Sheet1!$A$29:$I$44,5,FALSE)","v":12},{"$f":"VLOOKUP($A20,[1]Sheet1!$A$29:$I$44,6,FALSE)","v":18},{"$f":"VLOOKUP($A20,[1]Sheet1!$A$29:$I$44,7,FALSE)","v":12}]
["Q71","NHS England London",3552,125852,0.8682432432432432,4.7015765765765764E-2,2044,1040,175,79,88,126,{"$f":"VLOOKUP($A21,[1]Sheet1!$A$29:$I$44,8,FALSE)","v":3552},{"$f":"VLOOKUP($A21,[1]Sheet1!$A$29:$I$44,9,FALSE)","v":125852},0.8682432432432432,4.7015765765765764E-2,{"$f":"VLOOKUP($A21,[1]Sheet1!$A$29:$I$44,2,FALSE)","v":2044},{"$f":"VLOOKUP($A21,[1]Sheet1!$A$29:$I$44,3,FALSE)","v":1040},{"$f":"VLOOKUP($A21,[1]Sheet1!$A$29:$I$44,4,FALSE)","v":175},{"$f":"VLOOKUP($A21,[1]Sheet1!$A$29:$I$44,5,FALSE)","v":79},{"$f":"VLOOKUP($A21,[1]Sheet1!$A$29:$I$44,6,FALSE)","v":88},{"$f":"VLOOKUP($A21,[1]Sheet1!$A$29:$I$44,7,FALSE)","v":126}]
["IS1","Independent Sector Provider",735,13190,0.91972789115646258,3.2653061224489799E-2,502,174,28,14,10,7,{"$f":"VLOOKUP($A22,[1]Sheet1!$A$29:$I$44,8,FALSE)","v":735},{"$f":"VLOOKUP($A22,[1]Sheet1!$A$29:$I$44,9,FALSE)","v":13190},0.91972789115646258,3.2653061224489799E-2,{"$f":"VLOOKUP($A22,[1]Sheet1!$A$29:$I$44,2,FALSE)","v":502},{"$f":"VLOOKUP($A22,[1]Sheet1!$A$29:$I$44,3,FALSE)","v":174},{"$f":"VLOOKUP($A22,[1]Sheet1!$A$29:$I$44,4,FALSE)","v":28},{"$f":"VLOOKUP($A22,[1]Sheet1!$A$29:$I$44,5,FALSE)","v":14},{"$f":"VLOOKUP($A22,[1]Sheet1!$A$29:$I$44,6,FALSE)","v":10},{"$f":"VLOOKUP($A22,[1]Sheet1!$A$29:$I$44,7,FALSE)","v":7}]

{"sheet":"Trusts","index":3,"n_rows":82,"n_cols":20,"rows_kept":82,"cut":false,"hidden":false,"merged":[[2,6,3,6],[2,7,2,12],[2,13,2,19],[2,0,3,0],[2,1,3,1],[2,2,3,2],[2,3,3,3],[2,4,3,4],[2,5,3,5]]}
[]
[]
["Region (LO) Code","Trust Code","Trust Name","Total Responses","Total Eligible","Percentage Recommended","Percentage Not  Recommended","Breakdown of Responses",null,null,null,null,null,"Mode of Collection"]
[null,null,null,null,null,null,null,"Extremely Likely","Likely","Neither","Unlikely","Extremely Unlikely","Don't Know","SMS/Text / Smartphone App","Electronic tablet/kiosk at point of discharge","Paper / postcard at point of discharge","Paper survey sent to the patients home","Telephone survey once patient is home","Online survey once patient is home","Other"]
[null,null,"England (including Independent Sector Providers)",17577,659941,0.88974227683905105,4.1019514137793707E-2,10919,4720,773,326,395,444,362,2785,9599,1332,731,2128,640]
[null,null,"England (excluding Independent Sector Providers)",16842,646751,0.88843367771048565,4.1384633653960334E-2,10417,4546,745,312,385,437,358,2775,9091,1322,731,2051,514]
[null,null,"Selection (excluding suppressed data)",{"$f":"SUBTOTAL(9,D8:D193)","v":17577},{"$f":"SUBTOTAL(9,E8:E193)","v":659941},{"$f":"IFERROR((H7+I7)/SUM(H7:M7), \"-\")","v":0.88981217985202044},{"$f":"IFERROR((K7+L7)/SUM(H7:M7), \"-\")","v":4.1035856573705176E-2},{"$f":"SUBTOTAL(9,H8:H193)","v":10916},4718,771,326,395,444,362,2779,9598,1332,731,2128,640]
["Q71","RRP","BARNET, ENFIELD AND HARINGEY MENTAL HEALTH NHS TRUST",726,7895,0.87465564738292012,2.8925619834710745E-2,375,260,44,11,10,26,0,59,0,0,0,667,0]
["Q71","TAF","CAMDEN AND ISLINGTON NHS FOUNDATION TRUST",137,1992,0.8978102189781022,3.6496350364963501E-2,81,42,9,2,3,0,0,20,92,19,0,6,0]
["Q71","RV3","CENTRAL AND NORTH WEST LONDON NHS FOUNDATION TRUST",478,18719,0.89748953974895396,4.3933054393305436E-2,323,106,17,10,11,11,0,1,447,0,0,30,0]
["Q71","RWK","EAST LONDON NHS FOUNDATION TRUST",609,14871,0.88669950738916259,3.7766830870279149E-2,353,187,17,8,15,29,0,107,0,0,0,225,277]
["Q71","RAT","NORTH EAST LONDON NHS FOUNDATION TRUST",216,16248,0.89351851851851849,3.2407407407407406E-2,93,100,15,4,3,1,0,0,0,0,206,10,0]
["Q71","RPG","OXLEAS NHS FOUNDATION TRUST",299,8289,0.87290969899665549,4.0133779264214048E-2,180,81,21,6,6,5,10,100,100,89,0,0,0]
["Q71","RAL","ROYAL FREE LONDON NHS FOUNDATION TRUST",33,103,0.93939393939393945,6.0606060606060608E-2,27,4,0,2,0,0,0,0,33,0,0,0,0]
["Q71","RV5","SOUTH LONDON AND MAUDSLEY NHS FOUNDATION TRUST",784,33610,0.83290816326530615,6.6326530612244902E-2,426,227,40,25,27,39,0,319,405,0,0,60,0]
["Q71","RQY","SOUTH WEST LONDON AND ST GEORGE'S MENTAL HEALTH NHS TRUST",85,13918,0.63529411764705879,0.22352941176470589,43,11,8,8,11,4,62,23,0,0,0,0,0]
["Q71","RNK","TAVISTOCK AND PORTMAN NHS FOUNDATION TRUST",65,2637,0.92307692307692313,1.5384615384615385E-2,52,8,0,1,0,4,0,0,65,0,0,0,0]
["Q71","RRV","UNIVERSITY COLLEGE LONDON HOSPITALS NHS FOUNDATION TRUST",7,7,1,0,6,1,0,0,0,0,0,7,0,0,0,0,0]
["Q71","RKL","WEST LONDON NHS TRUST",113,7563,0.86725663716814161,3.5398230088495575E-2,85,13,4,2,2,7,0,0,113,0,0,0,0]
["Q72","TAD","BRADFORD DISTRICT CARE NHS FOUNDATION TRUST",69,7275,0.95652173913043481,2.8985507246376812E-2,46,20,0,0,2,1,0,46,16,0,0,7,0]
["Q72","RV9","HUMBER TEACHING NHS FOUNDATION TRUST",82,4111,0.90243902439024393,6.097560975609756E-2,58,16,2,2,3,1,0,6,76,0,0,0,0]
["Q72","RGD","LEEDS AND YORK PARTNERSHIP NHS FOUNDATION TRUST",77,6906,0.75324675324675328,0.1038961038961039,38,20,8,1,7,3,0,0,0,77,0,0,0]
["Q72","RXE","ROTHERHAM DONCASTER AND SOUTH HUMBER NHS FOUNDATION TRUST",110,19470,0.96363636363636362,2.7272727272727271E-2,96,10,1,1,2,0,0,0,110,0,0,0,0]
["Q72","RCU","SHEFFIELD CHILDREN'S NHS FOUNDATION TRUST",25,821,0.88,0.04,18,4,1,0,1,1,0,0,24,1,0,0,0]
["Q72","TAH","SHEFFIELD HEALTH & SOCIAL CARE NHS FOUNDATION TRUST",147,8465,0.94557823129251706,4.0816326530612242E-2,115,24,2,1,5,0,0,0,147,0,0,0,0]
["Q72","RXG","SOUTH WEST YORKSHIRE PARTNERSHIP NHS FOUNDATION TRUST",415,11446,0.89638554216867472,5.0602409638554217E-2,306,66,8,9,12,14,169,0,201,45,0,0,0]
["Q74","RNN","CUMBRIA PARTNERSHIP NHS FOUNDATION TRUST",119,3698,0.95798319327731096,3.3613445378151259E-2,91,23,1,1,3,0,0,1,114,0,0,4,0]
["Q74","RR7","GATESHEAD HEALTH NHS FOUNDATION TRUST",78,251,1,0,78,0,0,0,0,0,0,0,78,0,0,0,0]
["Q74","RX4","NORTHUMBERLAND, TYNE AND WEAR NHS FOUNDATION TRUST",394,24949,0.84517766497461932,8.6294416243654817E-2,240,93,22,15,19,5,0,0,0,257,0,18,119]
["Q74","RTF","NORTHUMBRIA HEALTHCARE NHS FOUNDATION TRUST",33,201,0.96969696969696972,0,30,2,0,0,0,1,0,0,33,0,0,0,0]
["Q74","RE9","SOUTH TYNESIDE NHS FOUNDATION TRUST",38,325,1,0,29,9,0,0,0,0,0,0,38,0,0,0,0]
["Q74","RX3","TEES, ESK AND WEAR VALLEYS NHS FOUNDATION TRUST",1824,78345,0.86677631578947367,4.8793859649122806E-2,950,631,99,42,47,55,2,567,1255,0,0,0,0]
["Q75","RBS","ALDER HEY CHILDREN'S NHS FOUNDATION TRUST",34,828,1,0,30,4,0,0,0,0,0,0,34,0,0,0,0]
["Q75","RXA","CHESHIRE AND WIRRAL PARTNERSHIP NHS FOUNDATION TRUST",83,8199,0.92771084337349397,2.4096385542168676E-2,43,34,3,2,0,1,0,0,0,83,0,0,0]
["Q75","RW4","MERSEY CARE NHS FOUNDATION TRUST",340,12025,0.88823529411764701,2.9411764705882353E-2,153,149,26,4,6,2,0,340,0,0,0,0,0]
["Q75","RTV","NORTH WEST BOROUGHS HEALTHCARE NHS FOUNDATION TRUST",260,11197,0.94615384615384612,7.6923076923076927E-3,177,69,6,1,1,6,0,0,260,0,0,0,0]
["Q76","RXM","DERBYSHIRE HEALTHCARE NHS FOUNDATION TRUST",288,14680,0.97222222222222221,0,230,50,3,0,0,5,0,0,217,0,0,71,0]
["Q76","RRE","MIDLANDS PARTNERSHIP NHS FOUNDATION TRUST",129,9961,0.89147286821705429,2.3255813953488372E-2,84,31,9,1,2,2,0,1,11,0,0,117,0]
["Q76","RLY","NORTH STAFFORDSHIRE COMBINED HEALTHCARE NHS TRUST",191,1518,0.89528795811518325,4.712041884816754E-2,121,50,3,4,5,8,0,0,191,0,0,0,0]
["Q76","RHA","NOTTINGHAMSHIRE HEALTHCARE NHS FOUNDATION TRUST",189,15735,0.77777777777777779,8.9947089947089942E-2,88,59,16,7,10,9,0,0,189,0,0,0,0]
["Q77","RXT","BIRMINGHAM AND SOLIHULL MENTAL HEALTH NHS FOUNDATION TRUST",415,16183,0.92048192771084336,2.891566265060241E-2,264,118,15,6,6,6,0,62,353,0,0,0,0]
["Q77","RQ3","BIRMINGHAM WOMEN'S AND CHILDREN'S NHS FOUNDATION TRUST",9,35,0.66666666666666663,0,4,2,2,0,0,1,0,0,9,0,0,0,0]
["Q77","TAJ","BLACK COUNTRY PARTNERSHIP NHS FOUNDATION TRUST",50,6730,0.96,0.02,40,8,1,0,1,0,0,0,50,0,0,0,0]
["Q77","RYG","COVENTRY AND WARWICKSHIRE PARTNERSHIP NHS TRUST",130,12939,0.88461538461538458,2.3076923076923078E-2,77,38,6,2,1,6,3,4,123,0,0,0,0]
["Q77","RYK","DUDLEY AND WALSALL MENTAL HEALTH PARTNERSHIP NHS TRUST",118,6779,0.72033898305084743,8.4745762711864406E-3,42,43,8,1,0,24,0,0,0,0,0,0,118]
["Q77","R1A","WORCESTERSHIRE HEALTH AND CARE NHS TRUST",147,2686,0.91156462585034015,3.4013605442176874E-2,92,42,6,2,3,2,0,0,147,0,0,0,0]
["Q78","RY4","HERTFORDSHIRE COMMUNITY NHS TRUST",53,503,0.94339622641509435,0,25,25,2,0,0,1,7,0,0,45,0,1,0]
["Q78","RWR","HERTFORDSHIRE PARTNERSHIP UNIVERSITY NHS FOUNDATION TRUST",423,11154,0.88888888888888884,4.0189125295508277E-2,194,182,23,9,8,7,0,0,367,0,10,46,0]
["Q78","RT5","LEICESTERSHIRE PARTNERSHIP NHS TRUST",112,29861,0.9553571428571429,8.9285714285714281E-3,74,33,2,1,0,2,0,39,73,0,0,0,0]
["Q78","RP7","LINCOLNSHIRE PARTNERSHIP NHS FOUNDATION TRUST",531,3314,0.91713747645951038,1.6949152542372881E-2,391,96,24,2,7,11,2,67,462,0,0,0,0]
["Q78","RP1","NORTHAMPTONSHIRE HEALTHCARE NHS FOUNDATION TRUST",495,6018,0.91313131313131313,2.2222222222222223E-2,339,113,18,6,5,14,0,16,472,0,0,7,0]
["Q79","RT1","CAMBRIDGESHIRE AND PETERBOROUGH NHS FOUNDATION TRUST",296,5839,0.875,4.3918918918918921E-2,184,75,15,4,9,9,0,174,0,107,0,15,0]
["Q79","R1L","ESSEX PARTNERSHIP UNIVERSITY NHS FOUNDATION TRUST",90,19536,0.93333333333333335,2.2222222222222223E-2,49,35,3,0,2,1,0,0,90,0,0,0,0]
["Q79","RMY","NORFOLK AND SUFFOLK NHS FOUNDATION TRUST",170,13312,0.89411764705882357,3.5294117647058823E-2,105,47,7,3,3,5,0,0,167,0,0,3,0]
["Q83","RXV","GREATER MANCHESTER MENTAL HEALTH NHS FOUNDATION TRUST",150,11816,0.57999999999999996,0.22,40,47,17,18,15,13,0,149,1,0,0,0,0]
["Q83","RT2","PENNINE CARE NHS FOUNDATION TRUST",329,9122,0.92097264437689974,5.7750759878419454E-2,274,29,4,17,2,3,29,0,287,6,0,7,0]
["Q84","RXL","BLACKPOOL TEACHING HOSPITALS NHS FOUNDATION TRUST",102,1512,0.94117647058823528,1.9607843137254902E-2,72,24,3,0,2,1,0,0,102,0,0,0,0]
["Q84","RW5","LANCASHIRE CARE NHS FOUNDATION TRUST",191,25461,0.91099476439790572,4.1884816753926704E-2,116,58,7,5,3,2,0,0,186,0,0,5,0]
["Q85","RJ8","CORNWALL PARTNERSHIP NHS FOUNDATION TRUST",164,3692,0.74390243902439024,5.4878048780487805E-2,72,50,15,1,8,18,0,62,33,4,0,65,0]
["Q85","RWV","DEVON PARTNERSHIP NHS TRUST",426,3921,0.95070422535211263,1.8779342723004695E-2,306,99,11,1,7,2,0,0,426,0,0,0,0]
["Q85","RDY","DORSET HEALTHCARE UNIVERSITY NHS FOUNDATION TRUST",413,7456,0.94673123486682809,1.2106537530266344E-2,306,85,17,3,2,0,3,54,336,0,0,20,0]
["Q85","RH5","SOMERSET PARTNERSHIP NHS FOUNDATION TRUST",43,4903,0.90697674418604646,2.3255813953488372E-2,30,9,3,0,1,0,0,0,0,0,0,43,0]
["Q86","RTQ","2GETHER NHS FOUNDATION TRUST",277,11497,0.79061371841155237,0.10469314079422383,208,11,20,10,19,9,52,0,41,0,0,184,0]
["Q86","RVN","AVON AND WILTSHIRE MENTAL HEALTH PARTNERSHIP NHS TRUST",814,5168,0.88329238329238324,2.7027027027027029E-2,484,235,39,12,10,34,0,40,83,589,0,102,0]
["Q87","RWX","BERKSHIRE HEALTHCARE NHS FOUNDATION TRUST",278,749,0.82733812949640284,7.9136690647482008E-2,163,67,19,9,13,7,11,143,52,0,0,72,0]
["Q87","R1F","ISLE OF WIGHT NHS TRUST",21,3432,1,0,19,2,0,0,0,0,0,0,21,0,0,0,0]
["Q87","RNU","OXFORD HEALTH NHS FOUNDATION TRUST",759,10118,0.93280632411067199,2.8985507246376812E-2,531,177,27,3,19,2,0,175,62,0,515,7,0]
["Q87","R1C","SOLENT NHS TRUST",144,1436,0.92361111111111116,4.1666666666666664E-2,95,38,3,5,1,2,0,8,136,0,0,0,0]
["Q87","RW1","SOUTHERN HEALTH NHS FOUNDATION TRUST",318,10295,0.91194968553459121,5.3459119496855348E-2,211,79,8,10,7,3,0,0,177,0,0,141,0]
["Q88","RXY","KENT AND MEDWAY NHS AND SOCIAL CARE PARTNERSHIP TRUST",510,11322,0.94509803921568625,2.1568627450980392E-2,327,155,14,5,6,3,0,0,510,0,0,0,0]
["Q88","RXX","SURREY AND BORDERS PARTNERSHIP NHS FOUNDATION TRUST",256,9190,0.91796875,3.125E-2,152,83,9,3,5,4,8,144,76,0,0,28,0]
["Q88","RX2","SUSSEX PARTNERSHIP NHS FOUNDATION TRUST",131,14514,0.7862595419847328,8.3969465648854963E-2,66,37,12,4,7,5,0,41,0,0,0,90,0]
["IS1","NL3","CARE PLUS GROUP",0,16,"NA","NA",0,0,0,0,0,0,0,0,0,0,0,0,0]
["IS1","NNF","CITY HEALTH CARE PARTNERSHIP CIC",158,2297,0.98101265822784811,1.2658227848101266E-2,132,23,0,2,0,1,0,4,154,0,0,0,0]
["IS1","NMJ","CYGNET HEALTH CARE LIMITED",6,1123,0.66666666666666663,0,"*","*","*","*","*","*","*","*","*","*","*","*","*"]
["IS1","DE8","ELYSIUM HEALTHCARE",1,102,"*","*","*","*","*","*","*","*","*","*","*","*","*","*","*"]
["IS1","NWX","HERE",60,455,0.8666666666666667,3.3333333333333333E-2,41,11,5,1,1,1,0,0,0,0,0,60,0]
["IS1","NR5","LIVEWELL SOUTHWEST",335,2438,0.91940298507462681,3.880597014925373E-2,209,99,11,6,7,3,4,0,314,0,0,17,0]
["IS1","NQL","NAVIGO HEALTH AND SOCIAL CARE CIC",113,2359,0.91150442477876104,3.5398230088495575E-2,77,26,4,4,0,2,0,0,0,0,0,0,113]
["IS1","AM5","OUTLOOK SW LTD",13,3760,1,0,10,3,0,0,0,0,0,0,0,0,0,0,13]
["IS1","NV2","THE HUNTERCOMBE GROUP",39,630,0.79487179487179482,7.6923076923076927E-2,25,6,5,1,2,0,0,0,39,0,0,0,0]
["IS1","NDK","YARBOROUGH CLEE CARE LIMITED",10,10,0.9,0,5,4,1,0,0,0,0,0,0,10,0,0,0]

{"sheet":"Categories","index":4,"n_rows":299,"n_cols":13,"rows_kept":299,"cut":false,"hidden":false,"merged":[[2,6,3,6],[2,7,2,12],[2,0,3,0],[2,1,3,1],[2,2,3,2],[2,3,3,3],[2,4,3,4],[2,5,3,5]]}
[]
[]
["Region (LO) Code","Trust Code","Trust Name","Service Category Provided","Total Responses","Percentage Recommended","Percentage Not  Recommended","Breakdown of Responses"]
[null,null,null,null,null,null,null,"Extremely Likely","Likely","Neither","Unlikely","Extremely Unlikely","Don't Know"]
[null,null,null,"England (including Independent Sector Providers)",17577,0.88974227683905105,4.1019514137793707E-2,10919,4720,773,326,395,444]
[null,null,null,"England (excluding Independent Sector Providers)",16842,0.88843367771048565,4.1384633653960334E-2,10417,4546,745,312,385,437]
[null,null,null,"Selection (excluding suppressed data)",{"$f":"SUBTOTAL(9,E8:E667)","v":17577},{"$f":"IFERROR((H7+I7)/SUM(H7:M7), \"-\")","v":0.88980253633678852},{"$f":"IFERROR((K7+L7)/SUM(H7:M7), \"-\")","v":4.1114135155480923E-2},{"$f":"SUBTOTAL(9,H8:H667)","v":10714},4652,758,322,388,435]
["Q71","RRP","BARNET, ENFIELD AND HARINGEY MENTAL HEALTH NHS TRUST","Acute Services",191,0.92670157068062831,2.0942408376963352E-2,59,118,8,3,1,2]
["Q71","RRP","BARNET, ENFIELD AND HARINGEY MENTAL HEALTH NHS TRUST","Child & Adolescent Mental Health Services",15,0.73333333333333328,6.6666666666666666E-2,7,4,3,0,1,0]
["Q71","RRP","BARNET, ENFIELD AND HARINGEY MENTAL HEALTH NHS TRUST","Secondary Care Community Services",375,0.84799999999999998,2.9333333333333333E-2,220,98,25,4,7,21]
["Q71","RRP","BARNET, ENFIELD AND HARINGEY MENTAL HEALTH NHS TRUST","Secure & Forensic Services",101,0.88118811881188119,4.9504950495049507E-2,63,26,6,4,1,1]
["Q71","RRP","BARNET, ENFIELD AND HARINGEY MENTAL HEALTH NHS TRUST","Specialist Services",44,0.90909090909090906,0,26,14,2,0,0,2]
["Q71","TAF","CAMDEN AND ISLINGTON NHS FOUNDATION TRUST","Acute Services",16,0.5625,0.25,3,6,3,1,3,0]
["Q71","TAF","CAMDEN AND ISLINGTON NHS FOUNDATION TRUST","Primary Care",63,0.93650793650793651,0,42,17,4,0,0,0]
["Q71","TAF","CAMDEN AND ISLINGTON NHS FOUNDATION TRUST","Secondary Care Community Services",53,0.94339622641509435,1.8867924528301886E-2,35,15,2,1,0,0]
["Q71","TAF","CAMDEN AND ISLINGTON NHS FOUNDATION TRUST","Specialist Services",5,1,0,1,4,0,0,0,0]
["Q71","RV3","CENTRAL AND NORTH WEST LONDON NHS FOUNDATION TRUST","Acute Services",87,0.72413793103448276,0.20689655172413793,44,19,5,9,9,1]
["Q71","RV3","CENTRAL AND NORTH WEST LONDON NHS FOUNDATION TRUST","Child & Adolescent Mental Health Services",73,0.90410958904109584,0,44,22,5,0,0,2]
["Q71","RV3","CENTRAL AND NORTH WEST LONDON NHS FOUNDATION TRUST","Mental Health Other",6,1,0,6,0,0,0,0,0]
["Q71","RV3","CENTRAL AND NORTH WEST LONDON NHS FOUNDATION TRUST","Secondary Care Community Services",196,0.95918367346938771,5.1020408163265302E-3,149,39,3,1,0,4]
["Q71","RV3","CENTRAL AND NORTH WEST LONDON NHS FOUNDATION TRUST","Specialist Services",116,0.91379310344827591,1.7241379310344827E-2,80,26,4,0,2,4]
["Q71","RWK","EAST LONDON NHS FOUNDATION TRUST","Acute Services",95,0.83157894736842108,6.3157894736842107E-2,58,21,5,3,3,5]
["Q71","RWK","EAST LONDON NHS FOUNDATION TRUST","Child & Adolescent Mental Health Services",210,0.89523809523809528,1.9047619047619049E-2,94,94,0,2,2,18]
["Q71","RWK","EAST LONDON NHS FOUNDATION TRUST","Mental Health Other",10,0.8,0,8,0,1,0,0,1]
["Q71","RWK","EAST LONDON NHS FOUNDATION TRUST","Primary Care",67,1,0,55,12,0,0,0,0]
["Q71","RWK","EAST LONDON NHS FOUNDATION TRUST","Secondary Care Community Services",185,0.85945945945945945,7.0270270270270274E-2,114,45,9,3,10,4]
["Q71","RWK","EAST LONDON NHS FOUNDATION TRUST","Specialist Services",42,0.9285714285714286,0,24,15,2,0,0,1]
["Q71","RAT","NORTH EAST LONDON NHS FOUNDATION TRUST","Acute Services",15,1,0,6,9,0,0,0,0]
["Q71","RAT","NORTH EAST LONDON NHS FOUNDATION TRUST","Child & Adolescent Mental Health Services",103,0.84466019417475724,4.8543689320388349E-2,46,41,11,3,2,0]
["Q71","RAT","NORTH EAST LONDON NHS FOUNDATION TRUST","Mental Health Other",5,1,0,4,1,0,0,0,0]
["Q71","RAT","NORTH EAST LONDON NHS FOUNDATION TRUST","Primary Care",11,1,0,5,6,0,0,0,0]
["Q71","RAT","NORTH EAST LONDON NHS FOUNDATION TRUST","Secondary Care Community Services",68,0.92647058823529416,2.9411764705882353E-2,25,38,2,1,1,1]
["Q71","RAT","NORTH EAST LONDON NHS FOUNDATION TRUST","Specialist Services",14,0.8571428571428571,0,7,5,2,0,0,0]
["Q71","RPG","OXLEAS NHS FOUNDATION TRUST","Acute Services",87,0.81609195402298851,9.1954022988505746E-2,39,32,7,5,3,1]
["Q71","RPG","OXLEAS NHS FOUNDATION TRUST","Secondary Care Community Services",130,0.87692307692307692,1.5384615384615385E-2,85,29,11,0,2,3]
["Q71","RPG","OXLEAS NHS FOUNDATION TRUST","Secure & Forensic Services",37,0.91891891891891897,0,26,8,3,0,0,0]
["Q71","RPG","OXLEAS NHS FOUNDATION TRUST","Specialist Services",45,0.93333333333333335,4.4444444444444446E-2,30,12,0,1,1,1]
["Q71","RAL","ROYAL FREE LONDON NHS FOUNDATION TRUST","Child & Adolescent Mental Health Services",33,0.93939393939393945,6.0606060606060608E-2,27,4,0,2,0,0]
["Q71","RV5","SOUTH LONDON AND MAUDSLEY NHS FOUNDATION TRUST","Acute Services",213,0.72300469483568075,0.14084507042253522,85,69,18,17,13,11]
["Q71","RV5","SOUTH LONDON AND MAUDSLEY NHS FOUNDATION TRUST","Child & Adolescent Mental Health Services",108,0.87037037037037035,5.5555555555555552E-2,76,18,3,1,5,5]
["Q71","RV5","SOUTH LONDON AND MAUDSLEY NHS FOUNDATION TRUST","Primary Care",9,1,0,7,2,0,0,0,0]
["Q71","RV5","SOUTH LONDON AND MAUDSLEY NHS FOUNDATION TRUST","Secondary Care Community Services",308,0.85389610389610393,3.5714285714285712E-2,164,99,16,3,8,18]
["Q71","RV5","SOUTH LONDON AND MAUDSLEY NHS FOUNDATION TRUST","Secure & Forensic Services",64,0.84375,4.6875E-2,26,28,3,3,0,4]
["Q71","RV5","SOUTH LONDON AND MAUDSLEY NHS FOUNDATION TRUST","Specialist Services",82,0.96341463414634143,2.4390243902439025E-2,68,11,0,1,1,1]
["Q71","RQY","SOUTH WEST LONDON AND ST GEORGE'S MENTAL HEALTH NHS TRUST","Acute Services",16,0.5,0.375,7,1,2,4,2,0]
["Q71","RQY","SOUTH WEST LONDON AND ST GEORGE'S MENTAL HEALTH NHS TRUST","Child & Adolescent Mental Health Services",2,"*","*","*","*","*","*","*","*"]
["Q71","RQY","SOUTH WEST LONDON AND ST GEORGE'S MENTAL HEALTH NHS TRUST","Secondary Care Community Services",65,0.69230769230769229,0.15384615384615385,36,9,6,1,9,4]
["Q71","RQY","SOUTH WEST LONDON AND ST GEORGE'S MENTAL HEALTH NHS TRUST","Secure & Forensic Services",2,"*","*","*","*","*","*","*","*"]
["Q71","RNK","TAVISTOCK AND PORTMAN NHS FOUNDATION TRUST","Mental Health Other",65,0.92307692307692313,1.5384615384615385E-2,52,8,0,1,0,4]
["Q71","RRV","UNIVERSITY COLLEGE LONDON HOSPITALS NHS FOUNDATION TRUST","Primary Care",7,1,0,6,1,0,0,0,0]
["Q71","RKL","WEST LONDON NHS TRUST","Acute Services",32,0.5625,0.125,11,7,4,2,2,6]
["Q71","RKL","WEST LONDON NHS TRUST","Mental Health Other",1,"*","*","*","*","*","*","*","*"]
["Q71","RKL","WEST LONDON NHS TRUST","Primary Care",1,"*","*","*","*","*","*","*","*"]
["Q71","RKL","WEST LONDON NHS TRUST","Secondary Care Community Services",5,0.8,0,4,0,0,0,0,1]
["Q71","RKL","WEST LONDON NHS TRUST","Specialist Services",74,1,0,69,5,0,0,0,0]
["Q72","TAD","BRADFORD DISTRICT CARE NHS FOUNDATION TRUST","Acute Services",27,0.96296296296296291,3.7037037037037035E-2,13,13,0,0,1,0]
["Q72","TAD","BRADFORD DISTRICT CARE NHS FOUNDATION TRUST","Child & Adolescent Mental Health Services",4,"*","*","*","*","*","*","*","*"]
["Q72","TAD","BRADFORD DISTRICT CARE NHS FOUNDATION TRUST","Mental Health Other",26,0.96153846153846156,0,19,6,0,0,0,1]
["Q72","TAD","BRADFORD DISTRICT CARE NHS FOUNDATION TRUST","Secondary Care Community Services",11,0.90909090909090906,9.0909090909090912E-2,10,0,0,0,1,0]
["Q72","TAD","BRADFORD DISTRICT CARE NHS FOUNDATION TRUST","Specialist Services",1,"*","*","*","*","*","*","*","*"]
["Q72","RV9","HUMBER TEACHING NHS FOUNDATION TRUST","Acute Services",4,"*","*","*","*","*","*","*","*"]
["Q72","RV9","HUMBER TEACHING NHS FOUNDATION TRUST","Child & Adolescent Mental Health Services",6,1,0,4,2,0,0,0,0]
["Q72","RV9","HUMBER TEACHING NHS FOUNDATION TRUST","Primary Care",7,1,0,6,1,0,0,0,0]
["Q72","RV9","HUMBER TEACHING NHS FOUNDATION TRUST","Secondary Care Community Services",61,0.90163934426229508,6.5573770491803282E-2,44,11,1,2,2,1]
["Q72","RV9","HUMBER TEACHING NHS FOUNDATION TRUST","Specialist Services",4,"*","*","*","*","*","*","*","*"]
["Q72","RGD","LEEDS AND YORK PARTNERSHIP NHS FOUNDATION TRUST","Acute Services",45,0.73333333333333328,0.13333333333333333,21,12,4,1,5,2]
["Q72","RGD","LEEDS AND YORK PARTNERSHIP NHS FOUNDATION TRUST","Mental Health Other",10,0.8,0,"*","*","*","*","*","*"]
["Q72","RGD","LEEDS AND YORK PARTNERSHIP NHS FOUNDATION TRUST","Secondary Care Community Services",21,0.76190476190476186,9.5238095238095233E-2,10,6,2,0,2,1]
["Q72","RGD","LEEDS AND YORK PARTNERSHIP NHS FOUNDATION TRUST","Specialist Services",1,"*","*","*","*","*","*","*","*"]
["Q72","RXE","ROTHERHAM DONCASTER AND SOUTH HUMBER NHS FOUNDATION TRUST","Acute Services",4,"*","*","*","*","*","*","*","*"]
["Q72","RXE","ROTHERHAM DONCASTER AND SOUTH HUMBER NHS FOUNDATION TRUST","Child & Adolescent Mental Health Services",10,1,0,"*","*","*","*","*","*"]
["Q72","RXE","ROTHERHAM DONCASTER AND SOUTH HUMBER NHS FOUNDATION TRUST","Primary Care",70,0.97142857142857142,1.4285714285714285E-2,63,5,1,0,1,0]
["Q72","RXE","ROTHERHAM DONCASTER AND SOUTH HUMBER NHS FOUNDATION TRUST","Secondary Care Community Services",15,0.93333333333333335,6.6666666666666666E-2,12,2,0,1,0,0]
["Q72","RXE","ROTHERHAM DONCASTER AND SOUTH HUMBER NHS FOUNDATION TRUST","Specialist Services",11,0.90909090909090906,9.0909090909090912E-2,10,0,0,0,1,0]
["Q72","RCU","SHEFFIELD CHILDREN'S NHS FOUNDATION TRUST","Acute Services",1,"*","*","*","*","*","*","*","*"]
["Q72","RCU","SHEFFIELD CHILDREN'S NHS FOUNDATION TRUST","Child & Adolescent Mental Health Services",24,0.91666666666666663,4.1666666666666664E-2,"*","*","*","*","*","*"]
["Q72","TAH","SHEFFIELD HEALTH & SOCIAL CARE NHS FOUNDATION TRUST","Mental Health Other",5,1,0,"*","*","*","*","*","*"]
["Q72","TAH","SHEFFIELD HEALTH & SOCIAL CARE NHS FOUNDATION TRUST","Primary Care",1,"*","*","*","*","*","*","*","*"]
["Q72","TAH","SHEFFIELD HEALTH & SOCIAL CARE NHS FOUNDATION TRUST","Secondary Care Community Services",131,0.94656488549618323,3.8167938931297711E-2,101,23,2,1,4,0]
["Q72","TAH","SHEFFIELD HEALTH & SOCIAL CARE NHS FOUNDATION TRUST","Specialist Services",10,0.9,0.1,9,0,0,0,1,0]
["Q72","RXG","SOUTH WEST YORKSHIRE PARTNERSHIP NHS FOUNDATION TRUST","Acute Services",15,0.93333333333333335,0,9,5,0,0,0,1]
["Q72","RXG","SOUTH WEST YORKSHIRE PARTNERSHIP NHS FOUNDATION TRUST","Child & Adolescent Mental Health Services",66,0.83333333333333337,4.5454545454545456E-2,50,5,5,0,3,3]
["Q72","RXG","SOUTH WEST YORKSHIRE PARTNERSHIP NHS FOUNDATION TRUST","Mental Health Other",54,0.98148148148148151,1.8518518518518517E-2,45,8,0,1,0,0]
["Q72","RXG","SOUTH WEST YORKSHIRE PARTNERSHIP NHS FOUNDATION TRUST","Primary Care",7,1,0,6,1,0,0,0,0]
["Q72","RXG","SOUTH WEST YORKSHIRE PARTNERSHIP NHS FOUNDATION TRUST","Secondary Care Community Services",263,0.89353612167300378,6.0836501901140684E-2,190,45,3,8,8,9]
["Q72","RXG","SOUTH WEST YORKSHIRE PARTNERSHIP NHS FOUNDATION TRUST","Specialist Services",10,0.8,0.1,6,2,0,0,1,1]
["Q74","RNN","CUMBRIA PARTNERSHIP NHS FOUNDATION TRUST","Acute Services",26,0.84615384615384615,0.15384615384615385,18,4,0,1,3,0]
["Q74","RNN","CUMBRIA PARTNERSHIP NHS FOUNDATION TRUST","Primary Care",59,0.98305084745762716,0,54,4,1,0,0,0]
["Q74","RNN","CUMBRIA PARTNERSHIP NHS FOUNDATION TRUST","Secondary Care Community Services",34,1,0,19,15,0,0,0,0]
["Q74","RR7","GATESHEAD HEALTH NHS FOUNDATION TRUST","Secondary Care Community Services",78,1,0,78,0,0,0,0,0]
["Q74","RX4","NORTHUMBERLAND, TYNE AND WEAR NHS FOUNDATION TRUST","Acute Services",24,0.66666666666666663,0.16666666666666666,9,7,4,2,2,0]
["Q74","RX4","NORTHUMBERLAND, TYNE AND WEAR NHS FOUNDATION TRUST","Child & Adolescent Mental Health Services",40,0.77500000000000002,7.4999999999999997E-2,21,10,5,0,3,1]
["Q74","RX4","NORTHUMBERLAND, TYNE AND WEAR NHS FOUNDATION TRUST","Mental Health Other",17,0.88235294117647056,0.11764705882352941,11,4,0,1,1,0]
["Q74","RX4","NORTHUMBERLAND, TYNE AND WEAR NHS FOUNDATION TRUST","Secondary Care Community Services",235,0.83829787234042552,8.9361702127659579E-2,137,60,13,10,11,4]
["Q74","RX4","NORTHUMBERLAND, TYNE AND WEAR NHS FOUNDATION TRUST","Specialist Services",78,0.94871794871794868,5.128205128205128E-2,62,12,0,2,2,0]
["Q74","RTF","NORTHUMBRIA HEALTHCARE NHS FOUNDATION TRUST","Primary Care",11,0.90909090909090906,0,10,0,0,0,0,1]
["Q74","RTF","NORTHUMBRIA HEALTHCARE NHS FOUNDATION TRUST","Secondary Care Community Services",22,1,0,20,2,0,0,0,0]
["Q74","RE9","SOUTH TYNESIDE NHS FOUNDATION TRUST","Child & Adolescent Mental Health Services",38,1,0,29,9,0,0,0,0]
["Q74","RX3","TEES, ESK AND WEAR VALLEYS NHS FOUNDATION TRUST","Acute Services",141,0.86524822695035464,5.6737588652482268E-2,77,45,9,6,2,2]
["Q74","RX3","TEES, ESK AND WEAR VALLEYS NHS FOUNDATION TRUST","Child & Adolescent Mental Health Services",337,0.85163204747774479,4.1543026706231452E-2,155,132,23,6,8,13]
["Q74","RX3","TEES, ESK AND WEAR VALLEYS NHS FOUNDATION TRUST","Mental Health Other",22,0.86363636363636365,0,16,3,2,0,0,1]
["Q74","RX3","TEES, ESK AND WEAR VALLEYS NHS FOUNDATION TRUST","Primary Care",240,0.9375,2.0833333333333332E-2,139,86,8,4,1,2]
["Q74","RX3","TEES, ESK AND WEAR VALLEYS NHS FOUNDATION TRUST","Secondary Care Community Services",769,0.89206762028608577,3.2509752925877766E-2,432,254,31,9,16,27]
["Q74","RX3","TEES, ESK AND WEAR VALLEYS NHS FOUNDATION TRUST","Secure & Forensic Services",216,0.72685185185185186,0.14351851851851852,85,72,21,13,18,7]
["Q74","RX3","TEES, ESK AND WEAR VALLEYS NHS FOUNDATION TRUST","Specialist Services",99,0.85858585858585856,6.0606060606060608E-2,46,39,5,4,2,3]
["Q75","RBS","ALDER HEY CHILDREN'S NHS FOUNDATION TRUST","Child & Adolescent Mental Health Services",34,1,0,30,4,0,0,0,0]
["Q75","RXA","CHESHIRE AND WIRRAL PARTNERSHIP NHS FOUNDATION TRUST","Acute Services",14,0.9285714285714286,0,8,5,1,0,0,0]
["Q75","RXA","CHESHIRE AND WIRRAL PARTNERSHIP NHS FOUNDATION TRUST","Child & Adolescent Mental Health Services",27,0.88888888888888884,0,2,22,2,0,0,1]
["Q75","RXA","CHESHIRE AND WIRRAL PARTNERSHIP NHS FOUNDATION TRUST","Mental Health Other",5,1,0,5,0,0,0,0,0]
["Q75","RXA","CHESHIRE AND WIRRAL PARTNERSHIP NHS FOUNDATION TRUST","Primary Care",1,"*","*","*","*","*","*","*","*"]
["Q75","RXA","CHESHIRE AND WIRRAL PARTNERSHIP NHS FOUNDATION TRUST","Secondary Care Community Services",32,0.9375,6.25E-2,23,7,0,2,0,0]
["Q75","RXA","CHESHIRE AND WIRRAL PARTNERSHIP NHS FOUNDATION TRUST","Specialist Services",4,"*","*","*","*","*","*","*","*"]
["Q75","RW4","MERSEY CARE NHS FOUNDATION TRUST","Acute Services",111,0.91891891891891897,1.8018018018018018E-2,49,53,7,2,0,0]
["Q75","RW4","MERSEY CARE NHS FOUNDATION TRUST","Primary Care",54,0.94444444444444442,1.8518518518518517E-2,36,15,2,1,0,0]
["Q75","RW4","MERSEY CARE NHS FOUNDATION TRUST","Secondary Care Community Services",81,0.90123456790123457,6.1728395061728392E-2,37,36,2,0,5,1]
["Q75","RW4","MERSEY CARE NHS FOUNDATION TRUST","Secure & Forensic Services",94,0.80851063829787229,2.1276595744680851E-2,31,45,15,1,1,1]
["Q75","RTV","NORTH WEST BOROUGHS HEALTHCARE NHS FOUNDATION TRUST","Acute Services",85,0.96470588235294119,0,64,18,3,0,0,0]
["Q75","RTV","NORTH WEST BOROUGHS HEALTHCARE NHS FOUNDATION TRUST","Primary Care",60,0.9,1.6666666666666666E-2,35,19,1,1,0,4]
["Q75","RTV","NORTH WEST BOROUGHS HEALTHCARE NHS FOUNDATION TRUST","Secondary Care Community Services",87,0.96551724137931039,0,59,25,2,0,0,1]
["Q75","RTV","NORTH WEST BOROUGHS HEALTHCARE NHS FOUNDATION TRUST","Specialist Services",28,0.9285714285714286,3.5714285714285712E-2,19,7,0,0,1,1]
["Q76","RXM","DERBYSHIRE HEALTHCARE NHS FOUNDATION TRUST","Acute Services",5,1,0,"*","*","*","*","*","*"]
["Q76","RXM","DERBYSHIRE HEALTHCARE NHS FOUNDATION TRUST","Primary Care",217,0.99539170506912444,0,186,30,0,0,0,1]
["Q76","RXM","DERBYSHIRE HEALTHCARE NHS FOUNDATION TRUST","Secondary Care Community Services",62,0.88709677419354838,0,38,17,3,0,0,4]
["Q76","RXM","DERBYSHIRE HEALTHCARE NHS FOUNDATION TRUST","Specialist Services",4,"*","*","*","*","*","*","*","*"]
["Q76","RRE","MIDLANDS PARTNERSHIP NHS FOUNDATION TRUST","Acute Services",31,0.83870967741935487,3.2258064516129031E-2,17,9,3,1,0,1]
["Q76","RRE","MIDLANDS PARTNERSHIP NHS FOUNDATION TRUST","Child & Adolescent Mental Health Services",3,"*","*","*","*","*","*","*","*"]
["Q76","RRE","MIDLANDS PARTNERSHIP NHS FOUNDATION TRUST","Mental Health Other",26,0.92307692307692313,0,19,5,2,0,0,0]
["Q76","RRE","MIDLANDS PARTNERSHIP NHS FOUNDATION TRUST","Primary Care",17,0.94117647058823528,0,14,2,1,0,0,0]
["Q76","RRE","MIDLANDS PARTNERSHIP NHS FOUNDATION TRUST","Secondary Care Community Services",47,0.8936170212765957,4.2553191489361701E-2,29,13,2,0,2,1]
["Q76","RRE","MIDLANDS PARTNERSHIP NHS FOUNDATION TRUST","Specialist Services",5,0.8,0,"*","*","*","*","*","*"]
["Q76","RLY","NORTH STAFFORDSHIRE COMBINED HEALTHCARE NHS TRUST","Acute Services",47,0.78723404255319152,6.3829787234042548E-2,27,10,2,2,1,5]
["Q76","RLY","NORTH STAFFORDSHIRE COMBINED HEALTHCARE NHS TRUST","Child & Adolescent Mental Health Services",30,0.93333333333333335,0,"*","*","*","*","*","*"]
["Q76","RLY","NORTH STAFFORDSHIRE COMBINED HEALTHCARE NHS TRUST","Mental Health Other",1,"*","*","*","*","*","*","*","*"]
["Q76","RLY","NORTH STAFFORDSHIRE COMBINED HEALTHCARE NHS TRUST","Secondary Care Community Services",113,0.92920353982300885,5.3097345132743362E-2,72,33,1,2,4,1]
["Q76","RHA","NOTTINGHAMSHIRE HEALTHCARE NHS FOUNDATION TRUST","Acute Services",15,0.8666666666666667,0.13333333333333333,9,4,0,1,1,0]
["Q76","RHA","NOTTINGHAMSHIRE HEALTHCARE NHS FOUNDATION TRUST","Child & Adolescent Mental Health Services",8,0.875,0,6,1,1,0,0,0]
["Q76","RHA","NOTTINGHAMSHIRE HEALTHCARE NHS FOUNDATION TRUST","Primary Care",24,0.91666666666666663,0,20,2,2,0,0,0]
["Q76","RHA","NOTTINGHAMSHIRE HEALTHCARE NHS FOUNDATION TRUST","Secondary Care Community Services",42,0.95238095238095233,2.3809523809523808E-2,26,14,1,1,0,0]
["Q76","RHA","NOTTINGHAMSHIRE HEALTHCARE NHS FOUNDATION TRUST","Secure & Forensic Services",100,0.65,0.14000000000000001,27,38,12,5,9,9]
["Q77","RXT","BIRMINGHAM AND SOLIHULL MENTAL HEALTH NHS FOUNDATION TRUST","Acute Services",126,0.88888888888888884,4.7619047619047616E-2,71,41,6,2,4,2]
["Q77","RXT","BIRMINGHAM AND SOLIHULL MENTAL HEALTH NHS FOUNDATION TRUST","Child & Adolescent Mental Health Services",1,"*","*","*","*","*","*","*","*"]
["Q77","RXT","BIRMINGHAM AND SOLIHULL MENTAL HEALTH NHS FOUNDATION TRUST","Mental Health Other",15,1,0,"*","*","*","*","*","*"]
["Q77","RXT","BIRMINGHAM AND SOLIHULL MENTAL HEALTH NHS FOUNDATION TRUST","Primary Care",74,0.97297297297297303,0,46,26,2,0,0,0]
["Q77","RXT","BIRMINGHAM AND SOLIHULL MENTAL HEALTH NHS FOUNDATION TRUST","Secondary Care Community Services",87,0.86206896551724133,5.7471264367816091E-2,57,18,5,3,2,2]
["Q77","RXT","BIRMINGHAM AND SOLIHULL MENTAL HEALTH NHS FOUNDATION TRUST","Secure & Forensic Services",31,0.967741935483871,0,14,16,0,0,0,1]
["Q77","RXT","BIRMINGHAM AND SOLIHULL MENTAL HEALTH NHS FOUNDATION TRUST","Specialist Services",81,0.95061728395061729,1.2345679012345678E-2,62,15,2,1,0,1]
["Q77","RQ3","BIRMINGHAM WOMEN'S AND CHILDREN'S NHS FOUNDATION TRUST","Child & Adolescent Mental Health Services",9,0.66666666666666663,0,4,2,2,0,0,1]
["Q77","TAJ","BLACK COUNTRY PARTNERSHIP NHS FOUNDATION TRUST","Mental Health Other",50,0.96,0.02,40,8,1,0,1,0]
["Q77","RYG","COVENTRY AND WARWICKSHIRE PARTNERSHIP NHS TRUST","Acute Services",3,"*","*","*","*","*","*","*","*"]
["Q77","RYG","COVENTRY AND WARWICKSHIRE PARTNERSHIP NHS TRUST","Child & Adolescent Mental Health Services",52,0.94230769230769229,0,26,23,2,0,0,1]
["Q77","RYG","COVENTRY AND WARWICKSHIRE PARTNERSHIP NHS TRUST","Mental Health Other",24,0.875,0,15,6,1,0,0,2]
["Q77","RYG","COVENTRY AND WARWICKSHIRE PARTNERSHIP NHS TRUST","Primary Care",1,"*","*","*","*","*","*","*","*"]
["Q77","RYG","COVENTRY AND WARWICKSHIRE PARTNERSHIP NHS TRUST","Secondary Care Community Services",44,0.81818181818181823,6.8181818181818177E-2,30,6,3,2,1,2]
["Q77","RYG","COVENTRY AND WARWICKSHIRE PARTNERSHIP NHS TRUST","Specialist Services",6,1,0,6,0,0,0,0,0]
["Q77","RYK","DUDLEY AND WALSALL MENTAL HEALTH PARTNERSHIP NHS TRUST","Secondary Care Community Services",118,0.72033898305084743,8.4745762711864406E-3,42,43,8,1,0,24]
["Q77","R1A","WORCESTERSHIRE HEALTH AND CARE NHS TRUST","Acute Services",17,0.94117647058823528,5.8823529411764705E-2,13,3,0,0,1,0]
["Q77","R1A","WORCESTERSHIRE HEALTH AND CARE NHS TRUST","Child & Adolescent Mental Health Services",14,0.6428571428571429,0.14285714285714285,7,2,3,1,1,0]
["Q77","R1A","WORCESTERSHIRE HEALTH AND CARE NHS TRUST","Primary Care",24,1,0,13,11,0,0,0,0]
["Q77","R1A","WORCESTERSHIRE HEALTH AND CARE NHS TRUST","Secondary Care Community Services",87,0.91954022988505746,2.2988505747126436E-2,56,24,3,1,1,2]
["Q77","R1A","WORCESTERSHIRE HEALTH AND CARE NHS TRUST","Specialist Services",5,1,0,3,2,0,0,0,0]
["Q78","RY4","HERTFORDSHIRE COMMUNITY NHS TRUST","Child & Adolescent Mental Health Services",53,0.94339622641509435,0,25,25,2,0,0,1]
["Q78","RWR","HERTFORDSHIRE PARTNERSHIP UNIVERSITY NHS FOUNDATION TRUST","Acute Services",102,0.8529411764705882,6.8627450980392163E-2,53,34,7,6,1,1]
["Q78","RWR","HERTFORDSHIRE PARTNERSHIP UNIVERSITY NHS FOUNDATION TRUST","Child & Adolescent Mental Health Services",122,0.82786885245901642,4.9180327868852458E-2,34,67,9,1,5,6]
["Q78","RWR","HERTFORDSHIRE PARTNERSHIP UNIVERSITY NHS FOUNDATION TRUST","Primary Care",92,0.96739130434782605,2.1739130434782608E-2,53,36,1,0,2,0]
["Q78","RWR","HERTFORDSHIRE PARTNERSHIP UNIVERSITY NHS FOUNDATION TRUST","Secondary Care Community Services",76,0.92105263157894735,1.3157894736842105E-2,39,31,5,1,0,0]
["Q78","RWR","HERTFORDSHIRE PARTNERSHIP UNIVERSITY NHS FOUNDATION TRUST","Secure & Forensic Services",8,0.75,0.125,4,2,1,1,0,0]
["Q78","RWR","HERTFORDSHIRE PARTNERSHIP UNIVERSITY NHS FOUNDATION TRUST","Specialist Services",23,1,0,11,12,0,0,0,0]
["Q78","RT5","LEICESTERSHIRE PARTNERSHIP NHS TRUST","Acute Services",15,1,0,8,7,0,0,0,0]
["Q78","RT5","LEICESTERSHIRE PARTNERSHIP NHS TRUST","Child & Adolescent Mental Health Services",31,0.93548387096774188,0,22,7,0,0,0,2]
["Q78","RT5","LEICESTERSHIRE PARTNERSHIP NHS TRUST","Mental Health Other",7,0.8571428571428571,0,5,1,1,0,0,0]
["Q78","RT5","LEICESTERSHIRE PARTNERSHIP NHS TRUST","Secondary Care Community Services",48,0.95833333333333337,2.0833333333333332E-2,32,14,1,1,0,0]
["Q78","RT5","LEICESTERSHIRE PARTNERSHIP NHS TRUST","Specialist Services",11,1,0,7,4,0,0,0,0]
["Q78","RP7","LINCOLNSHIRE PARTNERSHIP NHS FOUNDATION TRUST","Acute Services",66,0.86363636363636365,4.5454545454545456E-2,35,22,2,0,3,4]
["Q78","RP7","LINCOLNSHIRE PARTNERSHIP NHS FOUNDATION TRUST","Child & Adolescent Mental Health Services",63,0.8571428571428571,3.1746031746031744E-2,54,0,6,0,2,1]
["Q78","RP7","LINCOLNSHIRE PARTNERSHIP NHS FOUNDATION TRUST","Mental Health Other",30,0.8,3.3333333333333333E-2,"*","*","*","*","*","*"]
["Q78","RP7","LINCOLNSHIRE PARTNERSHIP NHS FOUNDATION TRUST","Primary Care",152,0.92105263157894735,6.5789473684210523E-3,111,29,10,0,1,1]
["Q78","RP7","LINCOLNSHIRE PARTNERSHIP NHS FOUNDATION TRUST","Secondary Care Community Services",216,0.96296296296296291,9.2592592592592587E-3,164,44,2,2,0,4]
["Q78","RP7","LINCOLNSHIRE PARTNERSHIP NHS FOUNDATION TRUST","Secure & Forensic Services",4,"*","*","*","*","*","*","*","*"]
["Q78","RP1","NORTHAMPTONSHIRE HEALTHCARE NHS FOUNDATION TRUST","Acute Services",60,0.8666666666666667,3.3333333333333333E-2,34,18,3,2,0,3]
["Q78","RP1","NORTHAMPTONSHIRE HEALTHCARE NHS FOUNDATION TRUST","Child & Adolescent Mental Health Services",127,0.90551181102362199,0,86,29,6,0,0,6]
["Q78","RP1","NORTHAMPTONSHIRE HEALTHCARE NHS FOUNDATION TRUST","Primary Care",8,1,0,7,1,0,0,0,0]
["Q78","RP1","NORTHAMPTONSHIRE HEALTHCARE NHS FOUNDATION TRUST","Secondary Care Community Services",138,0.95652173913043481,7.246376811594203E-3,102,30,2,1,0,3]
["Q78","RP1","NORTHAMPTONSHIRE HEALTHCARE NHS FOUNDATION TRUST","Secure & Forensic Services",57,0.89473684210526316,3.5087719298245612E-2,39,12,2,1,1,2]
["Q78","RP1","NORTHAMPTONSHIRE HEALTHCARE NHS FOUNDATION TRUST","Specialist Services",105,0.89523809523809528,5.7142857142857141E-2,71,23,5,2,4,0]
["Q79","RT1","CAMBRIDGESHIRE AND PETERBOROUGH NHS FOUNDATION TRUST","Acute Services",95,0.71578947368421053,0.10526315789473684,36,32,12,4,6,5]
["Q79","RT1","CAMBRIDGESHIRE AND PETERBOROUGH NHS FOUNDATION TRUST","Child & Adolescent Mental Health Services",29,0.82758620689655171,3.4482758620689655E-2,16,8,3,0,1,1]
["Q79","RT1","CAMBRIDGESHIRE AND PETERBOROUGH NHS FOUNDATION TRUST","Mental Health Other",2,"*","*","*","*","*","*","*","*"]
["Q79","RT1","CAMBRIDGESHIRE AND PETERBOROUGH NHS FOUNDATION TRUST","Primary Care",43,1,0,41,2,0,0,0,0]
["Q79","RT1","CAMBRIDGESHIRE AND PETERBOROUGH NHS FOUNDATION TRUST","Secondary Care Community Services",114,0.96491228070175439,8.771929824561403E-3,82,28,0,0,1,3]
["Q79","RT1","CAMBRIDGESHIRE AND PETERBOROUGH NHS FOUNDATION TRUST","Specialist Services",13,1,0,"*","*","*","*","*","*"]
["Q79","R1L","ESSEX PARTNERSHIP UNIVERSITY NHS FOUNDATION TRUST","Acute Services",28,0.9642857142857143,0,15,12,0,0,0,1]
["Q79","R1L","ESSEX PARTNERSHIP UNIVERSITY NHS FOUNDATION TRUST","Child & Adolescent Mental Health Services",1,"*","*","*","*","*","*","*","*"]
["Q79","R1L","ESSEX PARTNERSHIP UNIVERSITY NHS FOUNDATION TRUST","Secondary Care Community Services",25,0.84,0.08,"*","*","*","*","*","*"]
["Q79","R1L","ESSEX PARTNERSHIP UNIVERSITY NHS FOUNDATION TRUST","Specialist Services",36,0.97222222222222221,0,24,11,1,0,0,0]
["Q79","RMY","NORFOLK AND SUFFOLK NHS FOUNDATION TRUST","Acute Services",55,0.8545454545454545,5.4545454545454543E-2,25,22,3,2,1,2]
["Q79","RMY","NORFOLK AND SUFFOLK NHS FOUNDATION TRUST","Child & Adolescent Mental Health Services",6,1,0,"*","*","*","*","*","*"]
["Q79","RMY","NORFOLK AND SUFFOLK NHS FOUNDATION TRUST","Mental Health Other",1,"*","*","*","*","*","*","*","*"]
["Q79","RMY","NORFOLK AND SUFFOLK NHS FOUNDATION TRUST","Primary Care",10,0.9,0.1,8,1,0,0,1,0]
["Q79","RMY","NORFOLK AND SUFFOLK NHS FOUNDATION TRUST","Secondary Care Community Services",75,0.90666666666666662,2.6666666666666668E-2,50,18,2,1,1,3]
["Q79","RMY","NORFOLK AND SUFFOLK NHS FOUNDATION TRUST","Specialist Services",23,0.91304347826086951,0,16,5,2,0,0,0]
["Q83","RXV","GREATER MANCHESTER MENTAL HEALTH NHS FOUNDATION TRUST","Acute Services",3,"*","*","*","*","*","*","*","*"]
["Q83","RXV","GREATER MANCHESTER MENTAL HEALTH NHS FOUNDATION TRUST","Primary Care",1,"*","*","*","*","*","*","*","*"]
["Q83","RXV","GREATER MANCHESTER MENTAL HEALTH NHS FOUNDATION TRUST","Secondary Care Community Services",12,0.66666666666666663,8.3333333333333329E-2,3,5,1,1,0,2]
["Q83","RXV","GREATER MANCHESTER MENTAL HEALTH NHS FOUNDATION TRUST","Specialist Services",134,0.56716417910447758,0.23880597014925373,36,40,15,17,15,11]
["Q83","RT2","PENNINE CARE NHS FOUNDATION TRUST","Acute Services",35,1,0,34,1,0,0,0,0]
["Q83","RT2","PENNINE CARE NHS FOUNDATION TRUST","Child & Adolescent Mental Health Services",109,0.95412844036697253,3.669724770642202E-2,104,0,0,4,0,1]
["Q83","RT2","PENNINE CARE NHS FOUNDATION TRUST","Mental Health Other",12,1,0,12,0,0,0,0,0]
["Q83","RT2","PENNINE CARE NHS FOUNDATION TRUST","Primary Care",86,0.82558139534883723,0.11627906976744186,62,9,4,10,0,1]
["Q83","RT2","PENNINE CARE NHS FOUNDATION TRUST","Secondary Care Community Services",87,0.93103448275862066,5.7471264367816091E-2,62,19,0,3,2,1]
["Q84","RXL","BLACKPOOL TEACHING HOSPITALS NHS FOUNDATION TRUST","Child & Adolescent Mental Health Services",26,0.92307692307692313,0,12,12,1,0,0,1]
["Q84","RXL","BLACKPOOL TEACHING HOSPITALS NHS FOUNDATION TRUST","Primary Care",76,0.94736842105263153,2.6315789473684209E-2,60,12,2,0,2,0]
["Q84","RW5","LANCASHIRE CARE NHS FOUNDATION TRUST","Acute Services",80,0.82499999999999996,8.7499999999999994E-2,45,21,6,4,3,1]
["Q84","RW5","LANCASHIRE CARE NHS FOUNDATION TRUST","Mental Health Other",53,0.94339622641509435,1.8867924528301886E-2,27,23,1,1,0,1]
["Q84","RW5","LANCASHIRE CARE NHS FOUNDATION TRUST","Primary Care",5,1,0,4,1,0,0,0,0]
["Q84","RW5","LANCASHIRE CARE NHS FOUNDATION TRUST","Secondary Care Community Services",49,1,0,36,13,0,0,0,0]
["Q84","RW5","LANCASHIRE CARE NHS FOUNDATION TRUST","Secure & Forensic Services",1,"*","*","*","*","*","*","*","*"]
["Q84","RW5","LANCASHIRE CARE NHS FOUNDATION TRUST","Specialist Services",3,"*","*","*","*","*","*","*","*"]
["Q85","RJ8","CORNWALL PARTNERSHIP NHS FOUNDATION TRUST","Acute Services",70,0.8,7.1428571428571425E-2,28,28,6,0,5,3]
["Q85","RJ8","CORNWALL PARTNERSHIP NHS FOUNDATION TRUST","Child & Adolescent Mental Health Services",1,"*","*","*","*","*","*","*","*"]
["Q85","RJ8","CORNWALL PARTNERSHIP NHS FOUNDATION TRUST","Secondary Care Community Services",88,0.68181818181818177,4.5454545454545456E-2,40,20,9,1,3,15]
["Q85","RJ8","CORNWALL PARTNERSHIP NHS FOUNDATION TRUST","Specialist Services",5,1,0,"*","*","*","*","*","*"]
["Q85","RWV","DEVON PARTNERSHIP NHS TRUST","Acute Services",9,1,0,8,1,0,0,0,0]
["Q85","RWV","DEVON PARTNERSHIP NHS TRUST","Primary Care",168,0.95238095238095233,2.3809523809523808E-2,129,31,4,0,4,0]
["Q85","RWV","DEVON PARTNERSHIP NHS TRUST","Secondary Care Community Services",229,0.9606986899563319,1.3100436681222707E-2,155,65,4,1,2,2]
["Q85","RWV","DEVON PARTNERSHIP NHS TRUST","Specialist Services",20,0.8,0.05,14,2,3,0,1,0]
["Q85","RDY","DORSET HEALTHCARE UNIVERSITY NHS FOUNDATION TRUST","Acute Services",25,0.84,0.04,13,8,3,0,1,0]
["Q85","RDY","DORSET HEALTHCARE UNIVERSITY NHS FOUNDATION TRUST","Child & Adolescent Mental Health Services",30,0.8666666666666667,3.3333333333333333E-2,14,12,3,1,0,0]
["Q85","RDY","DORSET HEALTHCARE UNIVERSITY NHS FOUNDATION TRUST","Mental Health Other",81,0.92592592592592593,1.2345679012345678E-2,58,17,5,1,0,0]
["Q85","RDY","DORSET HEALTHCARE UNIVERSITY NHS FOUNDATION TRUST","Primary Care",174,0.99425287356321834,0,148,25,1,0,0,0]
["Q85","RDY","DORSET HEALTHCARE UNIVERSITY NHS FOUNDATION TRUST","Secondary Care Community Services",59,0.94915254237288138,1.6949152542372881E-2,41,15,2,0,1,0]
["Q85","RDY","DORSET HEALTHCARE UNIVERSITY NHS FOUNDATION TRUST","Secure & Forensic Services",19,0.89473684210526316,0,13,4,2,0,0,0]
["Q85","RDY","DORSET HEALTHCARE UNIVERSITY NHS FOUNDATION TRUST","Specialist Services",25,0.92,0.04,19,4,1,1,0,0]
["Q85","RH5","SOMERSET PARTNERSHIP NHS FOUNDATION TRUST","Acute Services",9,0.77777777777777779,0,5,2,2,0,0,0]
["Q85","RH5","SOMERSET PARTNERSHIP NHS FOUNDATION TRUST","Child & Adolescent Mental Health Services",3,"*","*","*","*","*","*","*","*"]
["Q85","RH5","SOMERSET PARTNERSHIP NHS FOUNDATION TRUST","Mental Health Other",23,0.91304347826086951,4.3478260869565216E-2,17,4,1,0,1,0]
["Q85","RH5","SOMERSET PARTNERSHIP NHS FOUNDATION TRUST","Secondary Care Community Services",5,1,0,5,0,0,0,0,0]
["Q85","RH5","SOMERSET PARTNERSHIP NHS FOUNDATION TRUST","Specialist Services",3,"*","*","*","*","*","*","*","*"]
["Q86","RTQ","2GETHER NHS FOUNDATION TRUST","Acute Services",31,0.58064516129032262,0.25806451612903225,18,0,2,3,5,3]
["Q86","RTQ","2GETHER NHS FOUNDATION TRUST","Child & Adolescent Mental Health Services",41,0.85365853658536583,9.7560975609756101E-2,31,4,1,4,0,1]
["Q86","RTQ","2GETHER NHS FOUNDATION TRUST","Primary Care",133,0.81203007518796988,6.0150375939849621E-2,108,0,14,0,8,3]
["Q86","RTQ","2GETHER NHS FOUNDATION TRUST","Secondary Care Community Services",60,0.81666666666666665,0.13333333333333333,43,6,2,3,5,1]
["Q86","RTQ","2GETHER NHS FOUNDATION TRUST","Specialist Services",12,0.75,8.3333333333333329E-2,8,1,1,0,1,1]
["Q86","RVN","AVON AND WILTSHIRE MENTAL HEALTH PARTNERSHIP NHS TRUST","Acute Services",68,0.80882352941176472,1.4705882352941176E-2,38,17,5,1,0,7]
["Q86","RVN","AVON AND WILTSHIRE MENTAL HEALTH PARTNERSHIP NHS TRUST","Child & Adolescent Mental Health Services",2,"*","*","*","*","*","*","*","*"]
["Q86","RVN","AVON AND WILTSHIRE MENTAL HEALTH PARTNERSHIP NHS TRUST","Mental Health Other",69,0.88405797101449279,2.8985507246376812E-2,39,22,2,1,1,4]
["Q86","RVN","AVON AND WILTSHIRE MENTAL HEALTH PARTNERSHIP NHS TRUST","Primary Care",190,0.93684210526315792,0,113,65,9,0,0,3]
["Q86","RVN","AVON AND WILTSHIRE MENTAL HEALTH PARTNERSHIP NHS TRUST","Secondary Care Community Services",378,0.87037037037037035,4.2328042328042326E-2,229,100,21,8,8,12]
["Q86","RVN","AVON AND WILTSHIRE MENTAL HEALTH PARTNERSHIP NHS TRUST","Secure & Forensic Services",9,0.77777777777777779,0,"*","*","*","*","*","*"]
["Q86","RVN","AVON AND WILTSHIRE MENTAL HEALTH PARTNERSHIP NHS TRUST","Specialist Services",98,0.89795918367346939,2.0408163265306121E-2,60,28,2,1,1,6]
["Q87","RWX","BERKSHIRE HEALTHCARE NHS FOUNDATION TRUST","Acute Services",79,0.65822784810126578,0.20253164556962025,28,24,8,7,9,3]
["Q87","RWX","BERKSHIRE HEALTHCARE NHS FOUNDATION TRUST","Child & Adolescent Mental Health Services",5,0.6,0,0,3,2,0,0,0]
["Q87","RWX","BERKSHIRE HEALTHCARE NHS FOUNDATION TRUST","Mental Health Other",7,1,0,4,3,0,0,0,0]
["Q87","RWX","BERKSHIRE HEALTHCARE NHS FOUNDATION TRUST","Primary Care",38,0.94736842105263153,0,34,2,2,0,0,0]
["Q87","RWX","BERKSHIRE HEALTHCARE NHS FOUNDATION TRUST","Secondary Care Community Services",113,0.90265486725663713,5.3097345132743362E-2,79,23,5,2,4,0]
["Q87","RWX","BERKSHIRE HEALTHCARE NHS FOUNDATION TRUST","Specialist Services",36,0.83333333333333337,0,18,12,2,0,0,4]
["Q87","R1F","ISLE OF WIGHT NHS TRUST","Acute Services",1,"*","*","*","*","*","*","*","*"]
["Q87","R1F","ISLE OF WIGHT NHS TRUST","Primary Care",17,1,0,15,2,0,0,0,0]
["Q87","R1F","ISLE OF WIGHT NHS TRUST","Secondary Care Community Services",3,"*","*","*","*","*","*","*","*"]
["Q87","RNU","OXFORD HEALTH NHS FOUNDATION TRUST","Acute Services",46,0.86956521739130432,6.5217391304347824E-2,29,11,3,2,1,0]
["Q87","RNU","OXFORD HEALTH NHS FOUNDATION TRUST","Child & Adolescent Mental Health Services",118,0.8728813559322034,3.3898305084745763E-2,65,38,11,0,4,0]
["Q87","RNU","OXFORD HEALTH NHS FOUNDATION TRUST","Primary Care",526,0.95057034220532322,2.8517110266159697E-2,386,114,10,1,14,1]
["Q87","RNU","OXFORD HEALTH NHS FOUNDATION TRUST","Secondary Care Community Services",49,0.93877551020408168,0,33,13,2,0,0,1]
["Q87","RNU","OXFORD HEALTH NHS FOUNDATION TRUST","Secure & Forensic Services",1,"*","*","*","*","*","*","*","*"]
["Q87","RNU","OXFORD HEALTH NHS FOUNDATION TRUST","Specialist Services",19,0.94736842105263153,0,"*","*","*","*","*","*"]
["Q87","R1C","SOLENT NHS TRUST","Acute Services",12,0.58333333333333337,0.25,4,3,2,3,0,0]
["Q87","R1C","SOLENT NHS TRUST","Child & Adolescent Mental Health Services",65,0.98461538461538467,0,51,13,0,0,0,1]
["Q87","R1C","SOLENT NHS TRUST","Secondary Care Community Services",67,0.92537313432835822,4.4776119402985072E-2,40,22,1,2,1,1]
["Q87","RW1","SOUTHERN HEALTH NHS FOUNDATION TRUST","Acute Services",23,0.73913043478260865,8.6956521739130432E-2,13,4,3,0,2,1]
["Q87","RW1","SOUTHERN HEALTH NHS FOUNDATION TRUST","Child & Adolescent Mental Health Services",8,0.875,0.125,3,4,0,1,0,0]
["Q87","RW1","SOUTHERN HEALTH NHS FOUNDATION TRUST","Mental Health Other",16,0.875,6.25E-2,11,3,0,1,0,1]
["Q87","RW1","SOUTHERN HEALTH NHS FOUNDATION TRUST","Primary Care",141,0.95744680851063835,1.4184397163120567E-2,103,32,4,1,1,0]
["Q87","RW1","SOUTHERN HEALTH NHS FOUNDATION TRUST","Secondary Care Community Services",130,0.9,8.461538461538462E-2,81,36,1,7,4,1]
["Q88","RXY","KENT AND MEDWAY NHS AND SOCIAL CARE PARTNERSHIP TRUST","Acute Services",122,0.90163934426229508,4.9180327868852458E-2,70,40,5,3,3,1]
["Q88","RXY","KENT AND MEDWAY NHS AND SOCIAL CARE PARTNERSHIP TRUST","Secondary Care Community Services",326,0.95398773006134974,1.5337423312883436E-2,213,98,9,2,3,1]
["Q88","RXY","KENT AND MEDWAY NHS AND SOCIAL CARE PARTNERSHIP TRUST","Secure & Forensic Services",62,0.9838709677419355,0,44,17,0,0,0,1]
["Q88","RXX","SURREY AND BORDERS PARTNERSHIP NHS FOUNDATION TRUST","Acute Services",45,0.88888888888888884,4.4444444444444446E-2,21,19,2,1,1,1]
["Q88","RXX","SURREY AND BORDERS PARTNERSHIP NHS FOUNDATION TRUST","Child & Adolescent Mental Health Services",18,0.83333333333333337,5.5555555555555552E-2,14,1,2,0,1,0]
["Q88","RXX","SURREY AND BORDERS PARTNERSHIP NHS FOUNDATION TRUST","Secondary Care Community Services",193,0.93264248704663211,2.5906735751295335E-2,117,63,5,2,3,3]
["Q88","RX2","SUSSEX PARTNERSHIP NHS FOUNDATION TRUST","Acute Services",25,0.92,0.08,12,11,0,1,1,0]
["Q88","RX2","SUSSEX PARTNERSHIP NHS FOUNDATION TRUST","Child & Adolescent Mental Health Services",3,"*","*","*","*","*","*","*","*"]
["Q88","RX2","SUSSEX PARTNERSHIP NHS FOUNDATION TRUST","Secondary Care Community Services",97,0.76288659793814428,8.247422680412371E-2,51,23,12,3,5,3]
["Q88","RX2","SUSSEX PARTNERSHIP NHS FOUNDATION TRUST","Secure & Forensic Services",4,"*","*","*","*","*","*","*","*"]
["Q88","RX2","SUSSEX PARTNERSHIP NHS FOUNDATION TRUST","Specialist Services",2,"*","*","*","*","*","*","*","*"]
["IS1","NNF","CITY HEALTH CARE PARTNERSHIP CIC","Mental Health Other",3,"*","*","*","*","*","*","*","*"]
["IS1","NNF","CITY HEALTH CARE PARTNERSHIP CIC","Primary Care",151,0.98013245033112584,1.3245033112582781E-2,126,22,0,2,0,1]
["IS1","NNF","CITY HEALTH CARE PARTNERSHIP CIC","Specialist Services",4,"*","*","*","*","*","*","*","*"]
["IS1","NMJ","CYGNET HEALTH CARE LIMITED","Specialist Services",6,0.66666666666666663,0,"*","*","*","*","*","*"]
["IS1","DE8","ELYSIUM HEALTHCARE","Mental Health Other",1,"*","*","*","*","*","*","*","*"]
["IS1","NWX","HERE","Primary Care",60,0.8666666666666667,3.3333333333333333E-2,41,11,5,1,1,1]
["IS1","NR5","LIVEWELL SOUTHWEST","Acute Services",32,0.84375,0.15625,18,9,0,2,3,0]
["IS1","NR5","LIVEWELL SOUTHWEST","Child & Adolescent Mental Health Services",43,0.88372093023255816,4.6511627906976744E-2,23,15,3,2,0,0]
["IS1","NR5","LIVEWELL SOUTHWEST","Primary Care",121,0.95867768595041325,8.2644628099173556E-3,72,44,2,1,0,2]
["IS1","NR5","LIVEWELL SOUTHWEST","Secondary Care Community Services",93,0.89247311827956988,4.3010752688172046E-2,64,19,5,1,3,1]
["IS1","NR5","LIVEWELL SOUTHWEST","Specialist Services",46,0.95652173913043481,2.1739130434782608E-2,32,12,1,0,1,0]
["IS1","NQL","NAVIGO HEALTH AND SOCIAL CARE CIC","Mental Health Other",113,0.91150442477876104,3.5398230088495575E-2,77,26,4,4,0,2]
["IS1","AM5","OUTLOOK SW LTD","Primary Care",13,1,0,10,3,0,0,0,0]
["IS1","NV2","THE HUNTERCOMBE GROUP","Child & Adolescent Mental Health Services",14,0.7857142857142857,0.14285714285714285,9,2,1,1,1,0]
["IS1","NV2","THE HUNTERCOMBE GROUP","Mental Health Other",25,0.8,0.04,16,4,4,0,1,0]
["IS1","NDK","YARBOROUGH CLEE CARE LIMITED","Secondary Care Community Services",10,0.9,0,5,4,1,0,0,0]

{"sheet":"BS","index":5,"n_rows":293,"n_cols":30,"rows_kept":293,"cut":false,"hidden":true,"merged":[]}
[null,"Sort","Region (LO) Code","Region (LO) name","Trust code","Trust name","Category",null,"Sort Lists:","Sort range…","Sort range…","Sort range…","Reference Region Lists:","Code…","Name…","Linked Region Lists:","Code…","Name…","Reference Lists:","Code…","Code…","Name…","Category…","Trusts Linked Lists:","Code…","Name…","Categories Linked Lists:","Code…","Name…","Category…"]
["Region (LO)",1,1,1,"-","-","-",null,null,"Region (LO) Code","Region (LO) Code","Region (LO) Code",null,"Q72","NHS England Yorkshire & Humber",null,"IS1","Independent Sector Providers",null,"Q71","RRP","BARNET, ENFIELD AND HARINGEY MENTAL HEALTH NHS TRUST","Acute Services",null,"AM5","2GETHER NHS FOUNDATION TRUST",null,"AM5","2GETHER NHS FOUNDATION TRUST","Acute Services"]
["Trusts",1,1,1,1,1,"-",null,null,"Region (Local Office)","Trust Code","Trust Code",null,"Q74","NHS England Cumbria & North East",null,"Q71","NHS England Central Midlands",null,"Q71","RRP","BARNET, ENFIELD AND HARINGEY MENTAL HEALTH NHS TRUST","Child & Adolescent Mental Health Services",null,"DE8","ALDER HEY CHILDREN'S NHS FOUNDATION TRUST",null,"DE8","ALDER HEY CHILDREN'S NHS FOUNDATION TRUST","Child & Adolescent Mental Health Services"]
["Categories",1,1,1,1,1,1,null,null,"Total Responses","Trust Name","Trust Name",null,"Q75","NHS England Cheshire & Merseyside",null,"Q72","NHS England Cheshire & Merseyside",null,"Q71","RRP","BARNET, ENFIELD AND HARINGEY MENTAL HEALTH NHS TRUST","Secondary Care Community Services",null,"NDK","AVON AND WILTSHIRE MENTAL HEALTH PARTNERSHIP NHS TRUST",null,"NDK","AVON AND WILTSHIRE MENTAL HEALTH PARTNERSHIP NHS TRUST","Mental Health Other"]
[null,null,null,null,null,null,null,null,null,"Total Eligible","Total Responses","Category",null,"Q83","NHS England Greater Manchester",null,"Q74","NHS England Cumbria & North East",null,"Q71","RRP","BARNET, ENFIELD AND HARINGEY MENTAL HEALTH NHS TRUST","Secure & Forensic Services",null,"NMJ","BARNET, ENFIELD AND HARINGEY MENTAL HEALTH NHS TRUST",null,"NMJ","BARNET, ENFIELD AND HARINGEY MENTAL HEALTH NHS TRUST","Primary Care"]
[null,null,null,null,null,null,null,null,null,"Percentage Recommended","Total Eligible","Total Responses",null,"Q84","NHS England Lancashire",null,"Q75","NHS England East",null,"Q71","RRP","BARNET, ENFIELD AND HARINGEY MENTAL HEALTH NHS TRUST","Specialist Services",null,"NNF","BERKSHIRE HEALTHCARE NHS FOUNDATION TRUST",null,"NNF","BERKSHIRE HEALTHCARE NHS FOUNDATION TRUST","Secondary Care Community Services"]
[null,null,null,null,null,null,null,null,null,"Percentage Not Recommended","Percentage Recommended","Percentage Recommended",null,"Q76","NHS England North Midlands",null,"Q76","NHS England Greater Manchester",null,"Q71","TAF","CAMDEN AND ISLINGTON NHS FOUNDATION TRUST","Acute Services",null,"NQL","BIRMINGHAM AND SOLIHULL MENTAL HEALTH NHS FOUNDATION TRUST",null,"NQL","BIRMINGHAM AND SOLIHULL MENTAL HEALTH NHS FOUNDATION TRUST","Secure & Forensic Services"]
[null,null,null,null,null,null,null,null,null,"Extremely Likely","Percentage Not Recommended","Percentage Not Recommended",null,"Q77","NHS England West Midlands",null,"Q77","NHS England Hampshire, Isle Of Wight & Thames Valley",null,"Q71","TAF","CAMDEN AND ISLINGTON NHS FOUNDATION TRUST","Primary Care",null,"NR5","BIRMINGHAM WOMEN'S AND CHILDREN'S NHS FOUNDATION TRUST",null,"NR5","BIRMINGHAM WOMEN'S AND CHILDREN'S NHS FOUNDATION TRUST","Specialist Services"]
[null,null,null,null,null,null,null,null,null,"Likely","Extremely Likely","Extremely Likely",null,"Q78","NHS England Central Midlands",null,"Q78","NHS England Kent, Surrey & Sussex",null,"Q71","TAF","CAMDEN AND ISLINGTON NHS FOUNDATION TRUST","Secondary Care Community Services",null,"NV2","BLACK COUNTRY PARTNERSHIP NHS FOUNDATION TRUST",null,"NV2","BLACK COUNTRY PARTNERSHIP NHS FOUNDATION TRUST"]
[null,null,null,null,null,null,null,null,null,"Neither","Likely","Likely",null,"Q79","NHS England East",null,"Q79","NHS England Lancashire",null,"Q71","TAF","CAMDEN AND ISLINGTON NHS FOUNDATION TRUST","Specialist Services",null,"NWX","BLACKPOOL TEACHING HOSPITALS NHS FOUNDATION TRUST",null,"NWX","BLACKPOOL TEACHING HOSPITALS NHS FOUNDATION TRUST"]
[null,null,null,null,null,null,null,null,null,"Unlikely","Neither","Neither",null,"Q85","NHS England South West South",null,"Q83","NHS England London",null,"Q71","RV3","CENTRAL AND NORTH WEST LONDON NHS FOUNDATION TRUST","Acute Services",null,"R1A","BRADFORD DISTRICT CARE NHS FOUNDATION TRUST",null,"R1A","BRADFORD DISTRICT CARE NHS FOUNDATION TRUST"]
[null,null,null,null,null,null,null,null,null,"Extremely Unlikely","Unlikely","Unlikely",null,"Q86","NHS England South West North",null,"Q84","NHS England North Midlands",null,"Q71","RV3","CENTRAL AND NORTH WEST LONDON NHS FOUNDATION TRUST","Child & Adolescent Mental Health Services",null,"R1C","CAMBRIDGESHIRE AND PETERBOROUGH NHS FOUNDATION TRUST",null,"R1C","CAMBRIDGESHIRE AND PETERBOROUGH NHS FOUNDATION TRUST"]
[null,null,null,null,null,null,null,null,null,"Don't Know","Extremely Unlikely","Extremely Unlikely",null,"Q87","NHS England Hampshire, Isle Of Wight & Thames Valley",null,"Q85","NHS England South West North",null,"Q71","RV3","CENTRAL AND NORTH WEST LONDON NHS FOUNDATION TRUST","Mental Health Other",null,"R1F","CAMDEN AND ISLINGTON NHS FOUNDATION TRUST",null,"R1F","CAMDEN AND ISLINGTON NHS FOUNDATION TRUST"]
[null,null,null,null,null,null,null,null,null,null,"Don't Know","Don't Know",null,"Q88","NHS England Kent, Surrey & Sussex",null,"Q86","NHS England South West South",null,"Q71","RV3","CENTRAL AND NORTH WEST LONDON NHS FOUNDATION TRUST","Secondary Care Community Services",null,"R1L","CENTRAL AND NORTH WEST LONDON NHS FOUNDATION TRUST",null,"R1L","CENTRAL AND NORTH WEST LONDON NHS FOUNDATION TRUST"]
[null,null,null,null,null,null,null,null,null,null,"SMS/Text / Smartphone App",null,null,"Q71","NHS England London",null,"Q87","NHS England West Midlands",null,"Q71","RV3","CENTRAL AND NORTH WEST LONDON NHS FOUNDATION TRUST","Specialist Services",null,"RAL","CHESHIRE AND WIRRAL PARTNERSHIP NHS FOUNDATION TRUST",null,"RAL","CHESHIRE AND WIRRAL PARTNERSHIP NHS FOUNDATION TRUST"]
[null,null,null,null,null,null,null,null,null,null,"Electronic tablet/kiosk at point of discharge",null,null,"IS1","Independent Sector Providers",null,"Q88","NHS England Yorkshire & Humber",null,"Q71","RWK","EAST LONDON NHS FOUNDATION TRUST","Acute Services",null,"RAT","CITY HEALTH CARE PARTNERSHIP CIC",null,"RAT","CITY HEALTH CARE PARTNERSHIP CIC"]
[null,null,null,null,null,null,null,null,null,null,"Paper / postcard at point of discharge",null,null,null,null,null,null,null,null,"Q71","RWK","EAST LONDON NHS FOUNDATION TRUST","Child & Adolescent Mental Health Services",null,"RBS","CORNWALL PARTNERSHIP NHS FOUNDATION TRUST",null,"RBS","CORNWALL PARTNERSHIP NHS FOUNDATION TRUST"]
[null,null,null,null,null,null,null,null,null,null,"Paper survey, sent to the patients home",null,null,null,null,null,null,null,null,"Q71","RWK","EAST LONDON NHS FOUNDATION TRUST","Mental Health Other",null,"RCU","COVENTRY AND WARWICKSHIRE PARTNERSHIP NHS TRUST",null,"RCU","COVENTRY AND WARWICKSHIRE PARTNERSHIP NHS TRUST"]
[null,null,null,null,null,null,null,null,null,null,"Telephone survey once patient is home",null,null,null,null,null,null,null,null,"Q71","RWK","EAST LONDON NHS FOUNDATION TRUST","Primary Care",null,"RDY","CUMBRIA PARTNERSHIP NHS FOUNDATION TRUST",null,"RDY","CUMBRIA PARTNERSHIP NHS FOUNDATION TRUST"]
[null,null,null,null,null,null,null,null,null,null,"Online survey once patient is home",null,null,null,null,null,null,null,null,"Q71","RWK","EAST LONDON NHS FOUNDATION TRUST","Secondary Care Community Services",null,"RE9","CYGNET HEALTH CARE LIMITED",null,"RE9","CYGNET HEALTH CARE LIMITED"]
[null,null,null,null,null,null,null,null,null,null,"Other",null,null,null,null,null,null,null,null,"Q71","RWK","EAST LONDON NHS FOUNDATION TRUST","Specialist Services",null,"RGD","DERBYSHIRE HEALTHCARE NHS FOUNDATION TRUST",null,"RGD","DERBYSHIRE HEALTHCARE NHS FOUNDATION TRUST"]
[null,null,null,null,null,null,null,null,null,null,null,null,null,null,null,null,null,null,null,"Q71","RAT","NORTH EAST LONDON NHS FOUNDATION TRUST","Acute Services",null,"RH5","DEVON PARTNERSHIP NHS TRUST",null,"RH5","DEVON PARTNERSHIP NHS TRUST"]
[null,null,null,null,null,null,null,null,null,null,null,null,null,null,null,null,null,null,null,"Q71","RAT","NORTH EAST LONDON NHS FOUNDATION TRUST","Child & Adolescent Mental Health Services",null,"RHA","DORSET HEALTHCARE UNIVERSITY NHS FOUNDATION TRUST",null,"RHA","DORSET HEALTHCARE UNIVERSITY NHS FOUNDATION TRUST"]
[null,null,null,null,null,null,null,null,null,null,null,null,null,null,null,null,null,null,null,"Q71","RAT","NORTH EAST LONDON NHS FOUNDATION TRUST","Mental Health Other",null,"RJ8","DUDLEY AND WALSALL MENTAL HEALTH PARTNERSHIP NHS TRUST",null,"RJ8","DUDLEY AND WALSALL MENTAL HEALTH PARTNERSHIP NHS TRUST"]
[null,null,null,null,null,null,null,null,null,null,null,null,null,null,null,null,null,null,null,"Q71","RAT","NORTH EAST LONDON NHS FOUNDATION TRUST","Primary Care",null,"RKL","EAST LONDON NHS FOUNDATION TRUST",null,"RKL","EAST LONDON NHS FOUNDATION TRUST"]
[null,null,null,null,null,null,null,null,null,null,null,null,null,null,null,null,null,null,null,"Q71","RAT","NORTH EAST LONDON NHS FOUNDATION TRUST","Secondary Care Community Services",null,"RLY","ELYSIUM HEALTHCARE",null,"RLY","ELYSIUM HEALTHCARE"]
[null,null,null,null,null,null,null,null,null,null,null,null,null,null,null,null,null,null,null,"Q71","RAT","NORTH EAST LONDON NHS FOUNDATION TRUST","Specialist Services",null,"RMY","ESSEX PARTNERSHIP UNIVERSITY NHS FOUNDATION TRUST",null,"RMY","ESSEX PARTNERSHIP UNIVERSITY NHS FOUNDATION TRUST"]
[null,null,null,null,null,null,null,null,null,null,null,null,null,null,null,null,null,null,null,"Q71","RPG","OXLEAS NHS FOUNDATION TRUST","Acute Services",null,"RNK","GATESHEAD HEALTH NHS FOUNDATION TRUST",null,"RNK","GATESHEAD HEALTH NHS FOUNDATION TRUST"]
[null,null,null,null,null,null,null,null,null,null,null,null,null,null,null,null,null,null,null,"Q71","RPG","OXLEAS NHS FOUNDATION TRUST","Secondary Care Community Services",null,"RNN","GREATER MANCHESTER MENTAL HEALTH NHS FOUNDATION TRUST",null,"RNN","GREATER MANCHESTER MENTAL HEALTH NHS FOUNDATION TRUST"]
[null,null,null,null,null,null,null,null,null,null,null,null,null,null,null,null,null,null,null,"Q71","RPG","OXLEAS NHS FOUNDATION TRUST","Secure & Forensic Services",null,"RNU","HERE",null,"RNU","HERE"]
[null,null,null,null,null,null,null,null,null,null,null,null,null,null,null,null,null,null,null,"Q71","RPG","OXLEAS NHS FOUNDATION TRUST","Specialist Services",null,"RP1","HERTFORDSHIRE COMMUNITY NHS TRUST",null,"RP1","HERTFORDSHIRE COMMUNITY NHS TRUST"]
[null,null,null,null,null,null,null,null,null,null,null,null,null,null,null,null,null,null,null,"Q71","RAL","ROYAL FREE LONDON NHS FOUNDATION TRUST","Child & Adolescent Mental Health Services",null,"RP7","HERTFORDSHIRE PARTNERSHIP UNIVERSITY NHS FOUNDATION TRUST",null,"RP7","HERTFORDSHIRE PARTNERSHIP UNIVERSITY NHS FOUNDATION TRUST"]
[null,null,null,null,null,null,null,null,null,null,null,null,null,null,null,null,null,null,null,"Q71","RV5","SOUTH LONDON AND MAUDSLEY NHS FOUNDATION TRUST","Acute Services",null,"RPG","HUMBER TEACHING NHS FOUNDATION TRUST",null,"RPG","HUMBER TEACHING NHS FOUNDATION TRUST"]
[null,null,null,null,null,null,null,null,null,null,null,null,null,null,null,null,null,null,null,"Q71","RV5","SOUTH LONDON AND MAUDSLEY NHS FOUNDATION TRUST","Child & Adolescent Mental Health Services",null,"RQ3","ISLE OF WIGHT NHS TRUST",null,"RQ3","ISLE OF WIGHT NHS TRUST"]
[null,null,null,null,null,null,null,null,null,null,null,null,null,null,null,null,null,null,null,"Q71","RV5","SOUTH LONDON AND MAUDSLEY NHS FOUNDATION TRUST","Primary Care",null,"RQY","KENT AND MEDWAY NHS AND SOCIAL CARE PARTNERSHIP TRUST",null,"RQY","KENT AND MEDWAY NHS AND SOCIAL CARE PARTNERSHIP TRUST"]
[null,null,null,null,null,null,null,null,null,null,null,null,null,null,null,null,null,null,null,"Q71","RV5","SOUTH LONDON AND MAUDSLEY NHS FOUNDATION TRUST","Secondary Care Community Services",null,"RR7","LANCASHIRE CARE NHS FOUNDATION TRUST",null,"RR7","LANCASHIRE CARE NHS FOUNDATION TRUST"]
[null,null,null,null,null,null,null,null,null,null,null,null,null,null,null,null,null,null,null,"Q71","RV5","SOUTH LONDON AND MAUDSLEY NHS FOUNDATION TRUST","Secure & Forensic Services",null,"RRE","LEEDS AND YORK PARTNERSHIP NHS FOUNDATION TRUST",null,"RRE","LEEDS AND YORK PARTNERSHIP NHS FOUNDATION TRUST"]
[null,null,null,null,null,null,null,null,null,null,null,null,null,null,null,null,null,null,null,"Q71","RV5","SOUTH LONDON AND MAUDSLEY NHS FOUNDATION TRUST","Specialist Services",null,"RRP","LEICESTERSHIRE PARTNERSHIP NHS TRUST",null,"RRP","LEICESTERSHIRE PARTNERSHIP NHS TRUST"]
[null,null,null,null,null,null,null,null,null,null,null,null,null,null,null,null,null,null,null,"Q71","RQY","SOUTH WEST LONDON AND ST GEORGE'S MENTAL HEALTH NHS TRUST","Acute Services",null,"RRV","LINCOLNSHIRE PARTNERSHIP NHS FOUNDATION TRUST",null,"RRV","LINCOLNSHIRE PARTNERSHIP NHS FOUNDATION TRUST"]
[null,null,null,null,null,null,null,null,null,null,null,null,null,null,null,null,null,null,null,"Q71","RQY","SOUTH WEST LONDON AND ST GEORGE'S MENTAL HEALTH NHS TRUST","Child & Adolescent Mental Health Services",null,"RT1","LIVEWELL SOUTHWEST",null,"RT1","LIVEWELL SOUTHWEST"]
[null,null,null,null,null,null,null,null,null,null,null,null,null,null,null,null,null,null,null,"Q71","RQY","SOUTH WEST LONDON AND ST GEORGE'S MENTAL HEALTH NHS TRUST","Secondary Care Community Services",null,"RT2","MERSEY CARE NHS FOUNDATION TRUST",null,"RT2","MERSEY CARE NHS FOUNDATION TRUST"]
[null,null,null,null,null,null,null,null,null,null,null,null,null,null,null,null,null,null,null,"Q71","RQY","SOUTH WEST LONDON AND ST GEORGE'S MENTAL HEALTH NHS TRUST","Secure & Forensic Services",null,"RT5","MIDLANDS PARTNERSHIP NHS FOUNDATION TRUST",null,"RT5","MIDLANDS PARTNERSHIP NHS FOUNDATION TRUST"]
[null,null,null,null,null,null,null,null,null,null,null,null,null,null,null,null,null,null,null,"Q71","RNK","TAVISTOCK AND PORTMAN NHS FOUNDATION TRUST","Mental Health Other",null,"RTF","NAVIGO HEALTH AND SOCIAL CARE CIC",null,"RTF","NAVIGO HEALTH AND SOCIAL CARE CIC"]
[null,null,null,null,null,null,null,null,null,null,null,null,null,null,null,null,null,null,null,"Q71","RRV","UNIVERSITY COLLEGE LONDON HOSPITALS NHS FOUNDATION TRUST","Primary Care",null,"RTQ","NORFOLK AND SUFFOLK NHS FOUNDATION TRUST",null,"RTQ","NORFOLK AND SUFFOLK NHS FOUNDATION TRUST"]
[null,null,null,null,null,null,null,null,null,null,null,null,null,null,null,null,null,null,null,"Q71","RKL","WEST LONDON NHS TRUST","Acute Services",null,"RTV","NORTH EAST LONDON NHS FOUNDATION TRUST",null,"RTV","NORTH EAST LONDON NHS FOUNDATION TRUST"]
[null,null,null,null,null,null,null,null,null,null,null,null,null,null,null,null,null,null,null,"Q71","RKL","WEST LONDON NHS TRUST","Mental Health Other",null,"RV3","NORTH STAFFORDSHIRE COMBINED HEALTHCARE NHS TRUST",null,"RV3","NORTH STAFFORDSHIRE COMBINED HEALTHCARE NHS TRUST"]
[null,null,null,null,null,null,null,null,null,null,null,null,null,null,null,null,null,null,null,"Q71","RKL","WEST LONDON NHS TRUST","Primary Care",null,"RV5","NORTH WEST BOROUGHS HEALTHCARE NHS FOUNDATION TRUST",null,"RV5","NORTH WEST BOROUGHS HEALTHCARE NHS FOUNDATION TRUST"]
[null,null,null,null,null,null,null,null,null,null,null,null,null,null,null,null,null,null,null,"Q71","RKL","WEST LONDON NHS TRUST","Secondary Care Community Services",null,"RV9","NORTHAMPTONSHIRE HEALTHCARE NHS FOUNDATION TRUST",null,"RV9","NORTHAMPTONSHIRE HEALTHCARE NHS FOUNDATION TRUST"]
[null,null,null,null,null,null,null,null,null,null,null,null,null,null,null,null,null,null,null,"Q71","RKL","WEST LONDON NHS TRUST","Specialist Services",null,"RVN","NORTHUMBERLAND, TYNE AND WEAR NHS FOUNDATION TRUST",null,"RVN","NORTHUMBERLAND, TYNE AND WEAR NHS FOUNDATION TRUST"]
[null,null,null,null,null,null,null,null,null,null,null,null,null,null,null,null,null,null,null,"Q72","TAD","BRADFORD DISTRICT CARE NHS FOUNDATION TRUST","Acute Services",null,"RW1","NORTHUMBRIA HEALTHCARE NHS FOUNDATION TRUST",null,"RW1","NORTHUMBRIA HEALTHCARE NHS FOUNDATION TRUST"]
[null,null,null,null,null,null,null,null,null,null,null,null,null,null,null,null,null,null,null,"Q72","TAD","BRADFORD DISTRICT CARE NHS FOUNDATION TRUST","Child & Adolescent Mental Health Services",null,"RW4","NOTTINGHAMSHIRE HEALTHCARE NHS FOUNDATION TRUST",null,"RW4","NOTTINGHAMSHIRE HEALTHCARE NHS FOUNDATION TRUST"]
[null,null,null,null,null,null,null,null,null,null,null,null,null,null,null,null,null,null,null,"Q72","TAD","BRADFORD DISTRICT CARE NHS FOUNDATION TRUST","Mental Health Other",null,"RW5","OUTLOOK SW LTD",null,"RW5","OUTLOOK SW LTD"]
[null,null,null,null,null,null,null,null,null,null,null,null,null,null,null,null,null,null,null,"Q72","TAD","BRADFORD DISTRICT CARE NHS FOUNDATION TRUST","Secondary Care Community Services",null,"RWK","OXFORD HEALTH NHS FOUNDATION TRUST",null,"RWK","OXFORD HEALTH NHS FOUNDATION TRUST"]
[null,null,null,null,null,null,null,null,null,null,null,null,null,null,null,null,null,null,null,"Q72","TAD","BRADFORD DISTRICT CARE NHS FOUNDATION TRUST","Specialist Services",null,"RWR","OXLEAS NHS FOUNDATION TRUST",null,"RWR","OXLEAS NHS FOUNDATION TRUST"]
[null,null,null,null,null,null,null,null,null,null,null,null,null,null,null,null,null,null,null,"Q72","RV9","HUMBER TEACHING NHS FOUNDATION TRUST","Acute Services",null,"RWV","PENNINE CARE NHS FOUNDATION TRUST",null,"RWV","PENNINE CARE NHS FOUNDATION TRUST"]
[null,null,null,null,null,null,null,null,null,null,null,null,null,null,null,null,null,null,null,"Q72","RV9","HUMBER TEACHING NHS FOUNDATION TRUST","Child & Adolescent Mental Health Services",null,"RWX","ROTHERHAM DONCASTER AND SOUTH HUMBER NHS FOUNDATION TRUST",null,"RWX","ROTHERHAM DONCASTER AND SOUTH HUMBER NHS FOUNDATION TRUST"]
[null,null,null,null,null,null,null,null,null,null,null,null,null,null,null,null,null,null,null,"Q72","RV9","HUMBER TEACHING NHS FOUNDATION TRUST","Primary Care",null,"RX2","ROYAL FREE LONDON NHS FOUNDATION TRUST",null,"RX2","ROYAL FREE LONDON NHS FOUNDATION TRUST"]
[null,null,null,null,null,null,null,null,null,null,null,null,null,null,null,null,null,null,null,"Q72","RV9","HUMBER TEACHING NHS FOUNDATION TRUST","Secondary Care Community Services",null,"RX3","SHEFFIELD CHILDREN'S NHS FOUNDATION TRUST",null,"RX3","SHEFFIELD CHILDREN'S NHS FOUNDATION TRUST"]
[null,null,null,null,null,null,null,null,null,null,null,null,null,null,null,null,null,null,null,"Q72","RV9","HUMBER TEACHING NHS FOUNDATION TRUST","Specialist Services",null,"RX4","SHEFFIELD HEALTH & SOCIAL CARE NHS FOUNDATION TRUST",null,"RX4","SHEFFIELD HEALTH & SOCIAL CARE NHS FOUNDATION TRUST"]
[null,null,null,null,null,null,null,null,null,null,null,null,null,null,null,null,null,null,null,"Q72","RGD","LEEDS AND YORK PARTNERSHIP NHS FOUNDATION TRUST","Acute Services",null,"RXA","SOLENT NHS TRUST",null,"RXA","SOLENT NHS TRUST"]
[null,null,null,null,null,null,null,null,null,null,null,null,null,null,null,null,null,null,null,"Q72","RGD","LEEDS AND YORK PARTNERSHIP NHS FOUNDATION TRUST","Mental Health Other",null,"RXE","SOMERSET PARTNERSHIP NHS FOUNDATION TRUST",null,"RXE","SOMERSET PARTNERSHIP NHS FOUNDATION TRUST"]
[null,null,null,null,null,null,null,null,null,null,null,null,null,null,null,null,null,null,null,"Q72","RGD","LEEDS AND YORK PARTNERSHIP NHS FOUNDATION TRUST","Secondary Care Community Services",null,"RXG","SOUTH LONDON AND MAUDSLEY NHS FOUNDATION TRUST",null,"RXG","SOUTH LONDON AND MAUDSLEY NHS FOUNDATION TRUST"]
[null,null,null,null,null,null,null,null,null,null,null,null,null,null,null,null,null,null,null,"Q72","RGD","LEEDS AND YORK PARTNERSHIP NHS FOUNDATION TRUST","Specialist Services",null,"RXL","SOUTH TYNESIDE NHS FOUNDATION TRUST",null,"RXL","SOUTH TYNESIDE NHS FOUNDATION TRUST"]
[null,null,null,null,null,null,null,null,null,null,null,null,null,null,null,null,null,null,null,"Q72","RXE","ROTHERHAM DONCASTER AND SOUTH HUMBER NHS FOUNDATION TRUST","Acute Services",null,"RXM","SOUTH WEST LONDON AND ST GEORGE'S MENTAL HEALTH NHS TRUST",null,"RXM","SOUTH WEST LONDON AND ST GEORGE'S MENTAL HEALTH NHS TRUST"]
[null,null,null,null,null,null,null,null,null,null,null,null,null,null,null,null,null,null,null,"Q72","RXE","ROTHERHAM DONCASTER AND SOUTH HUMBER NHS FOUNDATION TRUST","Child & Adolescent Mental Health Services",null,"RXT","SOUTH WEST YORKSHIRE PARTNERSHIP NHS FOUNDATION TRUST",null,"RXT","SOUTH WEST YORKSHIRE PARTNERSHIP NHS FOUNDATION TRUST"]
[null,null,null,null,null,null,null,null,null,null,null,null,null,null,null,null,null,null,null,"Q72","RXE","ROTHERHAM DONCASTER AND SOUTH HUMBER NHS FOUNDATION TRUST","Primary Care",null,"RXV","SOUTHERN HEALTH NHS FOUNDATION TRUST",null,"RXV","SOUTHERN HEALTH NHS FOUNDATION TRUST"]
[null,null,null,null,null,null,null,null,null,null,null,null,null,null,null,null,null,null,null,"Q72","RXE","ROTHERHAM DONCASTER AND SOUTH HUMBER NHS FOUNDATION TRUST","Secondary Care Community Services",null,"RXX","SURREY AND BORDERS PARTNERSHIP NHS FOUNDATION TRUST",null,"RXX","SURREY AND BORDERS PARTNERSHIP NHS FOUNDATION TRUST"]
[null,null,null,null,null,null,null,null,null,null,null,null,null,null,null,null,null,null,null,"Q72","RXE","ROTHERHAM DONCASTER AND SOUTH HUMBER NHS FOUNDATION TRUST","Specialist Services",null,"RXY","SUSSEX PARTNERSHIP NHS FOUNDATION TRUST",null,"RXY","SUSSEX PARTNERSHIP NHS FOUNDATION TRUST"]
[null,null,null,null,null,null,null,null,null,null,null,null,null,null,null,null,null,null,null,"Q72","RCU","SHEFFIELD CHILDREN'S NHS FOUNDATION TRUST","Acute Services",null,"RY4","TAVISTOCK AND PORTMAN NHS FOUNDATION TRUST",null,"RY4","TAVISTOCK AND PORTMAN NHS FOUNDATION TRUST"]
[null,null,null,null,null,null,null,null,null,null,null,null,null,null,null,null,null,null,null,"Q72","RCU","SHEFFIELD CHILDREN'S NHS FOUNDATION TRUST","Child & Adolescent Mental Health Services",null,"RYG","TEES, ESK AND WEAR VALLEYS NHS FOUNDATION TRUST",null,"RYG","TEES, ESK AND WEAR VALLEYS NHS FOUNDATION TRUST"]
[null,null,null,null,null,null,null,null,null,null,null,null,null,null,null,null,null,null,null,"Q72","TAH","SHEFFIELD HEALTH & SOCIAL CARE NHS FOUNDATION TRUST","Mental Health Other",null,"RYK","THE HUNTERCOMBE GROUP",null,"RYK","THE HUNTERCOMBE GROUP"]
[null,null,null,null,null,null,null,null,null,null,null,null,null,null,null,null,null,null,null,"Q72","TAH","SHEFFIELD HEALTH & SOCIAL CARE NHS FOUNDATION TRUST","Primary Care",null,"TAD","UNIVERSITY COLLEGE LONDON HOSPITALS NHS FOUNDATION TRUST",null,"TAD","UNIVERSITY COLLEGE LONDON HOSPITALS NHS FOUNDATION TRUST"]
[null,null,null,null,null,null,null,null,null,null,null,null,null,null,null,null,null,null,null,"Q72","TAH","SHEFFIELD HEALTH & SOCIAL CARE NHS FOUNDATION TRUST","Secondary Care Community Services",null,"TAF","WEST LONDON NHS TRUST",null,"TAF","WEST LONDON NHS TRUST"]
[null,null,null,null,null,null,null,null,null,null,null,null,null,null,null,null,null,null,null,"Q72","TAH","SHEFFIELD HEALTH & SOCIAL CARE NHS FOUNDATION TRUST","Specialist Services",null,"TAH","WORCESTERSHIRE HEALTH AND CARE NHS TRUST",null,"TAH","WORCESTERSHIRE HEALTH AND CARE NHS TRUST"]
[null,null,null,null,null,null,null,null,null,null,null,null,null,null,null,null,null,null,null,"Q72","RXG","SOUTH WEST YORKSHIRE PARTNERSHIP NHS FOUNDATION TRUST","Acute Services",null,"TAJ","YARBOROUGH CLEE CARE LIMITED",null,"TAJ","YARBOROUGH CLEE CARE LIMITED"]
[null,null,null,null,null,null,null,null,null,null,null,null,null,null,null,null,null,null,null,"Q72","RXG","SOUTH WEST YORKSHIRE PARTNERSHIP NHS FOUNDATION TRUST","Child & Adolescent Mental Health Services"]
[null,null,null,null,null,null,null,null,null,null,null,null,null,null,null,null,null,null,null,"Q72","RXG","SOUTH WEST YORKSHIRE PARTNERSHIP NHS FOUNDATION TRUST","Mental Health Other"]
[null,null,null,null,null,null,null,null,null,null,null,null,null,null,null,null,null,null,null,"Q72","RXG","SOUTH WEST YORKSHIRE PARTNERSHIP NHS FOUNDATION TRUST","Primary Care"]
[null,null,null,null,null,null,null,null,null,null,null,null,null,null,null,null,null,null,null,"Q72","RXG","SOUTH WEST YORKSHIRE PARTNERSHIP NHS FOUNDATION TRUST","Secondary Care Community Services"]
[null,null,null,null,null,null,null,null,null,null,null,null,null,null,null,null,null,null,null,"Q72","RXG","SOUTH WEST YORKSHIRE PARTNERSHIP NHS FOUNDATION TRUST","Specialist Services"]
[null,null,null,null,null,null,null,null,null,null,null,null,null,null,null,null,null,null,null,"Q74","RNN","CUMBRIA PARTNERSHIP NHS FOUNDATION TRUST","Acute Services"]
[null,null,null,null,null,null,null,null,null,null,null,null,null,null,null,null,null,null,null,"Q74","RNN","CUMBRIA PARTNERSHIP NHS FOUNDATION TRUST","Primary Care"]
[null,null,null,null,null,null,null,null,null,null,null,null,null,null,null,null,null,null,null,"Q74","RNN","CUMBRIA PARTNERSHIP NHS FOUNDATION TRUST","Secondary Care Community Services"]
[null,null,null,null,null,null,null,null,null,null,null,null,null,null,null,null,null,null,null,"Q74","RR7","GATESHEAD HEALTH NHS FOUNDATION TRUST","Secondary Care Community Services"]
[null,null,null,null,null,null,null,null,null,null,null,null,null,null,null,null,null,null,null,"Q74","RX4","NORTHUMBERLAND, TYNE AND WEAR NHS FOUNDATION TRUST","Acute Services"]
[null,null,null,null,null,null,null,null,null,null,null,null,null,null,null,null,null,null,null,"Q74","RX4","NORTHUMBERLAND, TYNE AND WEAR NHS FOUNDATION TRUST","Child & Adolescent Mental Health Services"]
[null,null,null,null,null,null,null,null,null,null,null,null,null,null,null,null,null,null,null,"Q74","RX4","NORTHUMBERLAND, TYNE AND WEAR NHS FOUNDATION TRUST","Mental Health Other"]
[null,null,null,null,null,null,null,null,null,null,null,null,null,null,null,null,null,null,null,"Q74","RX4","NORTHUMBERLAND, TYNE AND WEAR NHS FOUNDATION TRUST","Secondary Care Community Services"]
[null,null,null,null,null,null,null,null,null,null,null,null,null,null,null,null,null,null,null,"Q74","RX4","NORTHUMBERLAND, TYNE AND WEAR NHS FOUNDATION TRUST","Specialist Services"]
[null,null,null,null,null,null,null,null,null,null,null,null,null,null,null,null,null,null,null,"Q74","RTF","NORTHUMBRIA HEALTHCARE NHS FOUNDATION TRUST","Primary Care"]
[null,null,null,null,null,null,null,null,null,null,null,null,null,null,null,null,null,null,null,"Q74","RTF","NORTHUMBRIA HEALTHCARE NHS FOUNDATION TRUST","Secondary Care Community Services"]
[null,null,null,null,null,null,null,null,null,null,null,null,null,null,null,null,null,null,null,"Q74","RE9","SOUTH TYNESIDE NHS FOUNDATION TRUST","Child & Adolescent Mental Health Services"]
[null,null,null,null,null,null,null,null,null,null,null,null,null,null,null,null,null,null,null,"Q74","RX3","TEES, ESK AND WEAR VALLEYS NHS FOUNDATION TRUST","Acute Services"]
[null,null,null,null,null,null,null,null,null,null,null,null,null,null,null,null,null,null,null,"Q74","RX3","TEES, ESK AND WEAR VALLEYS NHS FOUNDATION TRUST","Child & Adolescent Mental Health Services"]
[null,null,null,null,null,null,null,null,null,null,null,null,null,null,null,null,null,null,null,"Q74","RX3","TEES, ESK AND WEAR VALLEYS NHS FOUNDATION TRUST","Mental Health Other"]
[null,null,null,null,null,null,null,null,null,null,null,null,null,null,null,null,null,null,null,"Q74","RX3","TEES, ESK AND WEAR VALLEYS NHS FOUNDATION TRUST","Primary Care"]
[null,null,null,null,null,null,null,null,null,null,null,null,null,null,null,null,null,null,null,"Q74","RX3","TEES, ESK AND WEAR VALLEYS NHS FOUNDATION TRUST","Secondary Care Community Services"]
[null,null,null,null,null,null,null,null,null,null,null,null,null,null,null,null,null,null,null,"Q74","RX3","TEES, ESK AND WEAR VALLEYS NHS FOUNDATION TRUST","Secure & Forensic Services"]
[null,null,null,null,null,null,null,null,null,null,null,null,null,null,null,null,null,null,null,"Q74","RX3","TEES, ESK AND WEAR VALLEYS NHS FOUNDATION TRUST","Specialist Services"]
[null,null,null,null,null,null,null,null,null,null,null,null,null,null,null,null,null,null,null,"Q75","RBS","ALDER HEY CHILDREN'S NHS FOUNDATION TRUST","Child & Adolescent Mental Health Services"]
[null,null,null,null,null,null,null,null,null,null,null,null,null,null,null,null,null,null,null,"Q75","RXA","CHESHIRE AND WIRRAL PARTNERSHIP NHS FOUNDATION TRUST","Acute Services"]
[null,null,null,null,null,null,null,null,null,null,null,null,null,null,null,null,null,null,null,"Q75","RXA","CHESHIRE AND WIRRAL PARTNERSHIP NHS FOUNDATION TRUST","Child & Adolescent Mental Health Services"]
[null,null,null,null,null,null,null,null,null,null,null,null,null,null,null,null,null,null,null,"Q75","RXA","CHESHIRE AND WIRRAL PARTNERSHIP NHS FOUNDATION TRUST","Mental Health Other"]
[null,null,null,null,null,null,null,null,null,null,null,null,null,null,null,null,null,null,null,"Q75","RXA","CHESHIRE AND WIRRAL PARTNERSHIP NHS FOUNDATION TRUST","Primary Care"]
[null,null,null,null,null,null,null,null,null,null,null,null,null,null,null,null,null,null,null,"Q75","RXA","CHESHIRE AND WIRRAL PARTNERSHIP NHS FOUNDATION TRUST","Secondary Care Community Services"]
[null,null,null,null,null,null,null,null,null,null,null,null,null,null,null,null,null,null,null,"Q75","RXA","CHESHIRE AND WIRRAL PARTNERSHIP NHS FOUNDATION TRUST","Specialist Services"]
[null,null,null,null,null,null,null,null,null,null,null,null,null,null,null,null,null,null,null,"Q75","RW4","MERSEY CARE NHS FOUNDATION TRUST","Acute Services"]
[null,null,null,null,null,null,null,null,null,null,null,null,null,null,null,null,null,null,null,"Q75","RW4","MERSEY CARE NHS FOUNDATION TRUST","Primary Care"]
[null,null,null,null,null,null,null,null,null,null,null,null,null,null,null,null,null,null,null,"Q75","RW4","MERSEY CARE NHS FOUNDATION TRUST","Secondary Care Community Services"]
[null,null,null,null,null,null,null,null,null,null,null,null,null,null,null,null,null,null,null,"Q75","RW4","MERSEY CARE NHS FOUNDATION TRUST","Secure & Forensic Services"]
[null,null,null,null,null,null,null,null,null,null,null,null,null,null,null,null,null,null,null,"Q75","RTV","NORTH WEST BOROUGHS HEALTHCARE NHS FOUNDATION TRUST","Acute Services"]
[null,null,null,null,null,null,null,null,null,null,null,null,null,null,null,null,null,null,null,"Q75","RTV","NORTH WEST BOROUGHS HEALTHCARE NHS FOUNDATION TRUST","Primary Care"]
[null,null,null,null,null,null,null,null,null,null,null,null,null,null,null,null,null,null,null,"Q75","RTV","NORTH WEST BOROUGHS HEALTHCARE NHS FOUNDATION TRUST","Secondary Care Community Services"]
[null,null,null,null,null,null,null,null,null,null,null,null,null,null,null,null,null,null,null,"Q75","RTV","NORTH WEST BOROUGHS HEALTHCARE NHS FOUNDATION TRUST","Specialist Services"]
[null,null,null,null,null,null,null,null,null,null,null,null,null,null,null,null,null,null,null,"Q76","RXM","DERBYSHIRE HEALTHCARE NHS FOUNDATION TRUST","Acute Services"]
[null,null,null,null,null,null,null,null,null,null,null,null,null,null,null,null,null,null,null,"Q76","RXM","DERBYSHIRE HEALTHCARE NHS FOUNDATION TRUST","Primary Care"]
[null,null,null,null,null,null,null,null,null,null,null,null,null,null,null,null,null,null,null,"Q76","RXM","DERBYSHIRE HEALTHCARE NHS FOUNDATION TRUST","Secondary Care Community Services"]
[null,null,null,null,null,null,null,null,null,null,null,null,null,null,null,null,null,null,null,"Q76","RXM","DERBYSHIRE HEALTHCARE NHS FOUNDATION TRUST","Specialist Services"]
[null,null,null,null,null,null,null,null,null,null,null,null,null,null,null,null,null,null,null,"Q76","RRE","MIDLANDS PARTNERSHIP NHS FOUNDATION TRUST","Acute Services"]
[null,null,null,null,null,null,null,null,null,null,null,null,null,null,null,null,null,null,null,"Q76","RRE","MIDLANDS PARTNERSHIP NHS FOUNDATION TRUST","Child & Adolescent Mental Health Services"]
[null,null,null,null,null,null,null,null,null,null,null,null,null,null,null,null,null,null,null,"Q76","RRE","MIDLANDS PARTNERSHIP NHS FOUNDATION TRUST","Mental Health Other"]
[null,null,null,null,null,null,null,null,null,null,null,null,null,null,null,null,null,null,null,"Q76","RRE","MIDLANDS PARTNERSHIP NHS FOUNDATION TRUST","Primary Care"]
[null,null,null,null,null,null,null,null,null,null,null,null,null,null,null,null,null,null,null,"Q76","RRE","MIDLANDS PARTNERSHIP NHS FOUNDATION TRUST","Secondary Care Community Services"]
[null,null,null,null,null,null,null,null,null,null,null,null,null,null,null,null,null,null,null,"Q76","RRE","MIDLANDS PARTNERSHIP NHS FOUNDATION TRUST","Specialist Services"]
[null,null,null,null,null,null,null,null,null,null,null,null,null,null,null,null,null,null,null,"Q76","RLY","NORTH STAFFORDSHIRE COMBINED HEALTHCARE NHS TRUST","Acute Services"]
[null,null,null,null,null,null,null,null,null,null,null,null,null,null,null,null,null,null,null,"Q76","RLY","NORTH STAFFORDSHIRE COMBINED HEALTHCARE NHS TRUST","Child & Adolescent Mental Health Services"]
[null,null,null,null,null,null,null,null,null,null,null,null,null,null,null,null,null,null,null,"Q76","RLY","NORTH STAFFORDSHIRE COMBINED HEALTHCARE NHS TRUST","Mental Health Other"]
[null,null,null,null,null,null,null,null,null,null,null,null,null,null,null,null,null,null,null,"Q76","RLY","NORTH STAFFORDSHIRE COMBINED HEALTHCARE NHS TRUST","Secondary Care Community Services"]
[null,null,null,null,null,null,null,null,null,null,null,null,null,null,null,null,null,null,null,"Q76","RHA","NOTTINGHAMSHIRE HEALTHCARE NHS FOUNDATION TRUST","Acute Services"]
[null,null,null,null,null,null,null,null,null,null,null,null,null,null,null,null,null,null,null,"Q76","RHA","NOTTINGHAMSHIRE HEALTHCARE NHS FOUNDATION TRUST","Child & Adolescent Mental Health Services"]
[null,null,null,null,null,null,null,null,null,null,null,null,null,null,null,null,null,null,null,"Q76","RHA","NOTTINGHAMSHIRE HEALTHCARE NHS FOUNDATION TRUST","Primary Care"]
[null,null,null,null,null,null,null,null,null,null,null,null,null,null,null,null,null,null,null,"Q76","RHA","NOTTINGHAMSHIRE HEALTHCARE NHS FOUNDATION TRUST","Secondary Care Community Services"]
[null,null,null,null,null,null,null,null,null,null,null,null,null,null,null,null,null,null,null,"Q76","RHA","NOTTINGHAMSHIRE HEALTHCARE NHS FOUNDATION TRUST","Secure & Forensic Services"]
[null,null,null,null,null,null,null,null,null,null,null,null,null,null,null,null,null,null,null,"Q77","RXT","BIRMINGHAM AND SOLIHULL MENTAL HEALTH NHS FOUNDATION TRUST","Acute Services"]
[null,null,null,null,null,null,null,null,null,null,null,null,null,null,null,null,null,null,null,"Q77","RXT","BIRMINGHAM AND SOLIHULL MENTAL HEALTH NHS FOUNDATION TRUST","Child & Adolescent Mental Health Services"]
[null,null,null,null,null,null,null,null,null,null,null,null,null,null,null,null,null,null,null,"Q77","RXT","BIRMINGHAM AND SOLIHULL MENTAL HEALTH NHS FOUNDATION TRUST","Mental Health Other"]
[null,null,null,null,null,null,null,null,null,null,null,null,null,null,null,null,null,null,null,"Q77","RXT","BIRMINGHAM AND SOLIHULL MENTAL HEALTH NHS FOUNDATION TRUST","Primary Care"]
[null,null,null,null,null,null,null,null,null,null,null,null,null,null,null,null,null,null,null,"Q77","RXT","BIRMINGHAM AND SOLIHULL MENTAL HEALTH NHS FOUNDATION TRUST","Secondary Care Community Services"]
[null,null,null,null,null,null,null,null,null,null,null,null,null,null,null,null,null,null,null,"Q77","RXT","BIRMINGHAM AND SOLIHULL MENTAL HEALTH NHS FOUNDATION TRUST","Secure & Forensic Services"]
[null,null,null,null,null,null,null,null,null,null,null,null,null,null,null,null,null,null,null,"Q77","RXT","BIRMINGHAM AND SOLIHULL MENTAL HEALTH NHS FOUNDATION TRUST","Specialist Services"]
[null,null,null,null,null,null,null,null,null,null,null,null,null,null,null,null,null,null,null,"Q77","RQ3","BIRMINGHAM WOMEN'S AND CHILDREN'S NHS FOUNDATION TRUST","Child & Adolescent Mental Health Services"]
[null,null,null,null,null,null,null,null,null,null,null,null,null,null,null,null,null,null,null,"Q77","TAJ","BLACK COUNTRY PARTNERSHIP NHS FOUNDATION TRUST","Mental Health Other"]
[null,null,null,null,null,null,null,null,null,null,null,null,null,null,null,null,null,null,null,"Q77","RYG","COVENTRY AND WARWICKSHIRE PARTNERSHIP NHS TRUST","Acute Services"]
[null,null,null,null,null,null,null,null,null,null,null,null,null,null,null,null,null,null,null,"Q77","RYG","COVENTRY AND WARWICKSHIRE PARTNERSHIP NHS TRUST","Child & Adolescent Mental Health Services"]
[null,null,null,null,null,null,null,null,null,null,null,null,null,null,null,null,null,null,null,"Q77","RYG","COVENTRY AND WARWICKSHIRE PARTNERSHIP NHS TRUST","Mental Health Other"]
[null,null,null,null,null,null,null,null,null,null,null,null,null,null,null,null,null,null,null,"Q77","RYG","COVENTRY AND WARWICKSHIRE PARTNERSHIP NHS TRUST","Primary Care"]
[null,null,null,null,null,null,null,null,null,null,null,null,null,null,null,null,null,null,null,"Q77","RYG","COVENTRY AND WARWICKSHIRE PARTNERSHIP NHS TRUST","Secondary Care Community Services"]
[null,null,null,null,null,null,null,null,null,null,null,null,null,null,null,null,null,null,null,"Q77","RYG","COVENTRY AND WARWICKSHIRE PARTNERSHIP NHS TRUST","Specialist Services"]
[null,null,null,null,null,null,null,null,null,null,null,null,null,null,null,null,null,null,null,"Q77","RYK","DUDLEY AND WALSALL MENTAL HEALTH PARTNERSHIP NHS TRUST","Secondary Care Community Services"]
[null,null,null,null,null,null,null,null,null,null,null,null,null,null,null,null,null,null,null,"Q77","R1A","WORCESTERSHIRE HEALTH AND CARE NHS TRUST","Acute Services"]
[null,null,null,null,null,null,null,null,null,null,null,null,null,null,null,null,null,null,null,"Q77","R1A","WORCESTERSHIRE HEALTH AND CARE NHS TRUST","Child & Adolescent Mental Health Services"]
[null,null,null,null,null,null,null,null,null,null,null,null,null,null,null,null,null,null,null,"Q77","R1A","WORCESTERSHIRE HEALTH AND CARE NHS TRUST","Primary Care"]
[null,null,null,null,null,null,null,null,null,null,null,null,null,null,null,null,null,null,null,"Q77","R1A","WORCESTERSHIRE HEALTH AND CARE NHS TRUST","Secondary Care Community Services"]
[null,null,null,null,null,null,null,null,null,null,null,null,null,null,null,null,null,null,null,"Q77","R1A","WORCESTERSHIRE HEALTH AND CARE NHS TRUST","Specialist Services"]
[null,null,null,null,null,null,null,null,null,null,null,null,null,null,null,null,null,null,null,"Q78","RY4","HERTFORDSHIRE COMMUNITY NHS TRUST","Child & Adolescent Mental Health Services"]
[null,null,null,null,null,null,null,null,null,null,null,null,null,null,null,null,null,null,null,"Q78","RWR","HERTFORDSHIRE PARTNERSHIP UNIVERSITY NHS FOUNDATION TRUST","Acute Services"]
[null,null,null,null,null,null,null,null,null,null,null,null,null,null,null,null,null,null,null,"Q78","RWR","HERTFORDSHIRE PARTNERSHIP UNIVERSITY NHS FOUNDATION TRUST","Child & Adolescent Mental Health Services"]
[null,null,null,null,null,null,null,null,null,null,null,null,null,null,null,null,null,null,null,"Q78","RWR","HERTFORDSHIRE PARTNERSHIP UNIVERSITY NHS FOUNDATION TRUST","Primary Care"]
[null,null,null,null,null,null,null,null,null,null,null,null,null,null,null,null,null,null,null,"Q78","RWR","HERTFORDSHIRE PARTNERSHIP UNIVERSITY NHS FOUNDATION TRUST","Secondary Care Community Services"]
[null,null,null,null,null,null,null,null,null,null,null,null,null,null,null,null,null,null,null,"Q78","RWR","HERTFORDSHIRE PARTNERSHIP UNIVERSITY NHS FOUNDATION TRUST","Secure & Forensic Services"]
[null,null,null,null,null,null,null,null,null,null,null,null,null,null,null,null,null,null,null,"Q78","RWR","HERTFORDSHIRE PARTNERSHIP UNIVERSITY NHS FOUNDATION TRUST","Specialist Services"]
[null,null,null,null,null,null,null,null,null,null,null,null,null,null,null,null,null,null,null,"Q78","RT5","LEICESTERSHIRE PARTNERSHIP NHS TRUST","Acute Services"]
[null,null,null,null,null,null,null,null,null,null,null,null,null,null,null,null,null,null,null,"Q78","RT5","LEICESTERSHIRE PARTNERSHIP NHS TRUST","Child & Adolescent Mental Health Services"]
[null,null,null,null,null,null,null,null,null,null,null,null,null,null,null,null,null,null,null,"Q78","RT5","LEICESTERSHIRE PARTNERSHIP NHS TRUST","Mental Health Other"]
[null,null,null,null,null,null,null,null,null,null,null,null,null,null,null,null,null,null,null,"Q78","RT5","LEICESTERSHIRE PARTNERSHIP NHS TRUST","Secondary Care Community Services"]
[null,null,null,null,null,null,null,null,null,null,null,null,null,null,null,null,null,null,null,"Q78","RT5","LEICESTERSHIRE PARTNERSHIP NHS TRUST","Specialist Services"]
[null,null,null,null,null,null,null,null,null,null,null,null,null,null,null,null,null,null,null,"Q78","RP7","LINCOLNSHIRE PARTNERSHIP NHS FOUNDATION TRUST","Acute Services"]
[null,null,null,null,null,null,null,null,null,null,null,null,null,null,null,null,null,null,null,"Q78","RP7","LINCOLNSHIRE PARTNERSHIP NHS FOUNDATION TRUST","Child & Adolescent Mental Health Services"]
[null,null,null,null,null,null,null,null,null,null,null,null,null,null,null,null,null,null,null,"Q78","RP7","LINCOLNSHIRE PARTNERSHIP NHS FOUNDATION TRUST","Mental Health Other"]
[null,null,null,null,null,null,null,null,null,null,null,null,null,null,null,null,null,null,null,"Q78","RP7","LINCOLNSHIRE PARTNERSHIP NHS FOUNDATION TRUST","Primary Care"]
[null,null,null,null,null,null,null,null,null,null,null,null,null,null,null,null,null,null,null,"Q78","RP7","LINCOLNSHIRE PARTNERSHIP NHS FOUNDATION TRUST","Secondary Care Community Services"]
[null,null,null,null,null,null,null,null,null,null,null,null,null,null,null,null,null,null,null,"Q78","RP7","LINCOLNSHIRE PARTNERSHIP NHS FOUNDATION TRUST","Secure & Forensic Services"]
[null,null,null,null,null,null,null,null,null,null,null,null,null,null,null,null,null,null,null,"Q78","RP1","NORTHAMPTONSHIRE HEALTHCARE NHS FOUNDATION TRUST","Acute Services"]
[null,null,null,null,null,null,null,null,null,null,null,null,null,null,null,null,null,null,null,"Q78","RP1","NORTHAMPTONSHIRE HEALTHCARE NHS FOUNDATION TRUST","Child & Adolescent Mental Health Services"]
[null,null,null,null,null,null,null,null,null,null,null,null,null,null,null,null,null,null,null,"Q78","RP1","NORTHAMPTONSHIRE HEALTHCARE NHS FOUNDATION TRUST","Primary Care"]
[null,null,null,null,null,null,null,null,null,null,null,null,null,null,null,null,null,null,null,"Q78","RP1","NORTHAMPTONSHIRE HEALTHCARE NHS FOUNDATION TRUST","Secondary Care Community Services"]
[null,null,null,null,null,null,null,null,null,null,null,null,null,null,null,null,null,null,null,"Q78","RP1","NORTHAMPTONSHIRE HEALTHCARE NHS FOUNDATION TRUST","Secure & Forensic Services"]
[null,null,null,null,null,null,null,null,null,null,null,null,null,null,null,null,null,null,null,"Q78","RP1","NORTHAMPTONSHIRE HEALTHCARE NHS FOUNDATION TRUST","Specialist Services"]
[null,null,null,null,null,null,null,null,null,null,null,null,null,null,null,null,null,null,null,"Q79","RT1","CAMBRIDGESHIRE AND PETERBOROUGH NHS FOUNDATION TRUST","Acute Services"]
[null,null,null,null,null,null,null,null,null,null,null,null,null,null,null,null,null,null,null,"Q79","RT1","CAMBRIDGESHIRE AND PETERBOROUGH NHS FOUNDATION TRUST","Child & Adolescent Mental Health Services"]
[null,null,null,null,null,null,null,null,null,null,null,null,null,null,null,null,null,null,null,"Q79","RT1","CAMBRIDGESHIRE AND PETERBOROUGH NHS FOUNDATION TRUST","Mental Health Other"]
[null,null,null,null,null,null,null,null,null,null,null,null,null,null,null,null,null,null,null,"Q79","RT1","CAMBRIDGESHIRE AND PETERBOROUGH NHS FOUNDATION TRUST","Primary Care"]
[null,null,null,null,null,null,null,null,null,null,null,null,null,null,null,null,null,null,null,"Q79","RT1","CAMBRIDGESHIRE AND PETERBOROUGH NHS FOUNDATION TRUST","Secondary Care Community Services"]
[null,null,null,null,null,null,null,null,null,null,null,null,null,null,null,null,null,null,null,"Q79","RT1","CAMBRIDGESHIRE AND PETERBOROUGH NHS FOUNDATION TRUST","Specialist Services"]
[null,null,null,null,null,null,null,null,null,null,null,null,null,null,null,null,null,null,null,"Q79","R1L","ESSEX PARTNERSHIP UNIVERSITY NHS FOUNDATION TRUST","Acute Services"]
[null,null,null,null,null,null,null,null,null,null,null,null,null,null,null,null,null,null,null,"Q79","R1L","ESSEX PARTNERSHIP UNIVERSITY NHS FOUNDATION TRUST","Child & Adolescent Mental Health Services"]
[null,null,null,null,null,null,null,null,null,null,null,null,null,null,null,null,null,null,null,"Q79","R1L","ESSEX PARTNERSHIP UNIVERSITY NHS FOUNDATION TRUST","Secondary Care Community Services"]
[null,null,null,null,null,null,null,null,null,null,null,null,null,null,null,null,null,null,null,"Q79","R1L","ESSEX PARTNERSHIP UNIVERSITY NHS FOUNDATION TRUST","Specialist Services"]
[null,null,null,null,null,null,null,null,null,null,null,null,null,null,null,null,null,null,null,"Q79","RMY","NORFOLK AND SUFFOLK NHS FOUNDATION TRUST","Acute Services"]
[null,null,null,null,null,null,null,null,null,null,null,null,null,null,null,null,null,null,null,"Q79","RMY","NORFOLK AND SUFFOLK NHS FOUNDATION TRUST","Child & Adolescent Mental Health Services"]
[null,null,null,null,null,null,null,null,null,null,null,null,null,null,null,null,null,null,null,"Q79","RMY","NORFOLK AND SUFFOLK NHS FOUNDATION TRUST","Mental Health Other"]
[null,null,null,null,null,null,null,null,null,null,null,null,null,null,null,null,null,null,null,"Q79","RMY","NORFOLK AND SUFFOLK NHS FOUNDATION TRUST","Primary Care"]
[null,null,null,null,null,null,null,null,null,null,null,null,null,null,null,null,null,null,null,"Q79","RMY","NORFOLK AND SUFFOLK NHS FOUNDATION TRUST","Secondary Care Community Services"]
[null,null,null,null,null,null,null,null,null,null,null,null,null,null,null,null,null,null,null,"Q79","RMY","NORFOLK AND SUFFOLK NHS FOUNDATION TRUST","Specialist Services"]
[null,null,null,null,null,null,null,null,null,null,null,null,null,null,null,null,null,null,null,"Q83","RXV","GREATER MANCHESTER MENTAL HEALTH NHS FOUNDATION TRUST","Acute Services"]
[null,null,null,null,null,null,null,null,null,null,null,null,null,null,null,null,null,null,null,"Q83","RXV","GREATER MANCHESTER MENTAL HEALTH NHS FOUNDATION TRUST","Primary Care"]
[null,null,null,null,null,null,null,null,null,null,null,null,null,null,null,null,null,null,null,"Q83","RXV","GREATER MANCHESTER MENTAL HEALTH NHS FOUNDATION TRUST","Secondary Care Community Services"]
[null,null,null,null,null,null,null,null,null,null,null,null,null,null,null,null,null,null,null,"Q83","RXV","GREATER MANCHESTER MENTAL HEALTH NHS FOUNDATION TRUST","Specialist Services"]
[null,null,null,null,null,null,null,null,null,null,null,null,null,null,null,null,null,null,null,"Q83","RT2","PENNINE CARE NHS FOUNDATION TRUST","Acute Services"]
[null,null,null,null,null,null,null,null,null,null,null,null,null,null,null,null,null,null,null,"Q83","RT2","PENNINE CARE NHS FOUNDATION TRUST","Child & Adolescent Mental Health Services"]
[null,null,null,null,null,null,null,null,null,null,null,null,null,null,null,null,null,null,null,"Q83","RT2","PENNINE CARE NHS FOUNDATION TRUST","Mental Health Other"]
[null,null,null,null,null,null,null,null,null,null,null,null,null,null,null,null,null,null,null,"Q83","RT2","PENNINE CARE NHS FOUNDATION TRUST","Primary Care"]
[null,null,null,null,null,null,null,null,null,null,null,null,null,null,null,null,null,null,null,"Q83","RT2","PENNINE CARE NHS FOUNDATION TRUST","Secondary Care Community Services"]
[null,null,null,null,null,null,null,null,null,null,null,null,null,null,null,null,null,null,null,"Q84","RXL","BLACKPOOL TEACHING HOSPITALS NHS FOUNDATION TRUST","Child & Adolescent Mental Health Services"]
[null,null,null,null,null,null,null,null,null,null,null,null,null,null,null,null,null,null,null,"Q84","RXL","BLACKPOOL TEACHING HOSPITALS NHS FOUNDATION TRUST","Primary Care"]
[null,null,null,null,null,null,null,null,null,null,null,null,null,null,null,null,null,null,null,"Q84","RW5","LANCASHIRE CARE NHS FOUNDATION TRUST","Acute Services"]
[null,null,null,null,null,null,null,null,null,null,null,null,null,null,null,null,null,null,null,"Q84","RW5","LANCASHIRE CARE NHS FOUNDATION TRUST","Mental Health Other"]
[null,null,null,null,null,null,null,null,null,null,null,null,null,null,null,null,null,null,null,"Q84","RW5","LANCASHIRE CARE NHS FOUNDATION TRUST","Primary Care"]
[null,null,null,null,null,null,null,null,null,null,null,null,null,null,null,null,null,null,null,"Q84","RW5","LANCASHIRE CARE NHS FOUNDATION TRUST","Secondary Care Community Services"]
[null,null,null,null,null,null,null,null,null,null,null,null,null,null,null,null,null,null,null,"Q84","RW5","LANCASHIRE CARE NHS FOUNDATION TRUST","Secure & Forensic Services"]
[null,null,null,null,null,null,null,null,null,null,null,null,null,null,null,null,null,null,null,"Q84","RW5","LANCASHIRE CARE NHS FOUNDATION TRUST","Specialist Services"]
[null,null,null,null,null,null,null,null,null,null,null,null,null,null,null,null,null,null,null,"Q85","RJ8","CORNWALL PARTNERSHIP NHS FOUNDATION TRUST","Acute Services"]
[null,null,null,null,null,null,null,null,null,null,null,null,null,null,null,null,null,null,null,"Q85","RJ8","CORNWALL PARTNERSHIP NHS FOUNDATION TRUST","Child & Adolescent Mental Health Services"]
[null,null,null,null,null,null,null,null,null,null,null,null,null,null,null,null,null,null,null,"Q85","RJ8","CORNWALL PARTNERSHIP NHS FOUNDATION TRUST","Secondary Care Community Services"]
[null,null,null,null,null,null,null,null,null,null,null,null,null,null,null,null,null,null,null,"Q85","RJ8","CORNWALL PARTNERSHIP NHS FOUNDATION TRUST","Specialist Services"]
[null,null,null,null,null,null,null,null,null,null,null,null,null,null,null,null,null,null,null,"Q85","RWV","DEVON PARTNERSHIP NHS TRUST","Acute Services"]
[null,null,null,null,null,null,null,null,null,null,null,null,null,null,null,null,null,null,null,"Q85","RWV","DEVON PARTNERSHIP NHS TRUST","Primary Care"]
[null,null,null,null,null,null,null,null,null,null,null,null,null,null,null,null,null,null,null,"Q85","RWV","DEVON PARTNERSHIP NHS TRUST","Secondary Care Community Services"]
[null,null,null,null,null,null,null,null,null,null,null,null,null,null,null,null,null,null,null,"Q85","RWV","DEVON PARTNERSHIP NHS TRUST","Specialist Services"]
[null,null,null,null,null,null,null,null,null,null,null,null,null,null,null,null,null,null,null,"Q85","RDY","DORSET HEALTHCARE UNIVERSITY NHS FOUNDATION TRUST","Acute Services"]
[null,null,null,null,null,null,null,null,null,null,null,null,null,null,null,null,null,null,null,"Q85","RDY","DORSET HEALTHCARE UNIVERSITY NHS FOUNDATION TRUST","Child & Adolescent Mental Health Services"]
[null,null,null,null,null,null,null,null,null,null,null,null,null,null,null,null,null,null,null,"Q85","RDY","DORSET HEALTHCARE UNIVERSITY NHS FOUNDATION TRUST","Mental Health Other"]
[null,null,null,null,null,null,null,null,null,null,null,null,null,null,null,null,null,null,null,"Q85","RDY","DORSET HEALTHCARE UNIVERSITY NHS FOUNDATION TRUST","Primary Care"]
[null,null,null,null,null,null,null,null,null,null,null,null,null,null,null,null,null,null,null,"Q85","RDY","DORSET HEALTHCARE UNIVERSITY NHS FOUNDATION TRUST","Secondary Care Community Services"]
[null,null,null,null,null,null,null,null,null,null,null,null,null,null,null,null,null,null,null,"Q85","RDY","DORSET HEALTHCARE UNIVERSITY NHS FOUNDATION TRUST","Secure & Forensic Services"]
[null,null,null,null,null,null,null,null,null,null,null,null,null,null,null,null,null,null,null,"Q85","RDY","DORSET HEALTHCARE UNIVERSITY NHS FOUNDATION TRUST","Specialist Services"]
[null,null,null,null,null,null,null,null,null,null,null,null,null,null,null,null,null,null,null,"Q85","RH5","SOMERSET PARTNERSHIP NHS FOUNDATION TRUST","Acute Services"]
[null,null,null,null,null,null,null,null,null,null,null,null,null,null,null,null,null,null,null,"Q85","RH5","SOMERSET PARTNERSHIP NHS FOUNDATION TRUST","Child & Adolescent Mental Health Services"]
[null,null,null,null,null,null,null,null,null,null,null,null,null,null,null,null,null,null,null,"Q85","RH5","SOMERSET PARTNERSHIP NHS FOUNDATION TRUST","Mental Health Other"]
[null,null,null,null,null,null,null,null,null,null,null,null,null,null,null,null,null,null,null,"Q85","RH5","SOMERSET PARTNERSHIP NHS FOUNDATION TRUST","Secondary Care Community Services"]
[null,null,null,null,null,null,null,null,null,null,null,null,null,null,null,null,null,null,null,"Q85","RH5","SOMERSET PARTNERSHIP NHS FOUNDATION TRUST","Specialist Services"]
[null,null,null,null,null,null,null,null,null,null,null,null,null,null,null,null,null,null,null,"Q86","RTQ","2GETHER NHS FOUNDATION TRUST","Acute Services"]
[null,null,null,null,null,null,null,null,null,null,null,null,null,null,null,null,null,null,null,"Q86","RTQ","2GETHER NHS FOUNDATION TRUST","Child & Adolescent Mental Health Services"]
[null,null,null,null,null,null,null,null,null,null,null,null,null,null,null,null,null,null,null,"Q86","RTQ","2GETHER NHS FOUNDATION TRUST","Primary Care"]
[null,null,null,null,null,null,null,null,null,null,null,null,null,null,null,null,null,null,null,"Q86","RTQ","2GETHER NHS FOUNDATION TRUST","Secondary Care Community Services"]
[null,null,null,null,null,null,null,null,null,null,null,null,null,null,null,null,null,null,null,"Q86","RTQ","2GETHER NHS FOUNDATION TRUST","Specialist Services"]
[null,null,null,null,null,null,null,null,null,null,null,null,null,null,null,null,null,null,null,"Q86","RVN","AVON AND WILTSHIRE MENTAL HEALTH PARTNERSHIP NHS TRUST","Acute Services"]
[null,null,null,null,null,null,null,null,null,null,null,null,null,null,null,null,null,null,null,"Q86","RVN","AVON AND WILTSHIRE MENTAL HEALTH PARTNERSHIP NHS TRUST","Child & Adolescent Mental Health Services"]
[null,null,null,null,null,null,null,null,null,null,null,null,null,null,null,null,null,null,null,"Q86","RVN","AVON AND WILTSHIRE MENTAL HEALTH PARTNERSHIP NHS TRUST","Mental Health Other"]
[null,null,null,null,null,null,null,null,null,null,null,null,null,null,null,null,null,null,null,"Q86","RVN","AVON AND WILTSHIRE MENTAL HEALTH PARTNERSHIP NHS TRUST","Primary Care"]
[null,null,null,null,null,null,null,null,null,null,null,null,null,null,null,null,null,null,null,"Q86","RVN","AVON AND WILTSHIRE MENTAL HEALTH PARTNERSHIP NHS TRUST","Secondary Care Community Services"]
[null,null,null,null,null,null,null,null,null,null,null,null,null,null,null,null,null,null,null,"Q86","RVN","AVON AND WILTSHIRE MENTAL HEALTH PARTNERSHIP NHS TRUST","Secure & Forensic Services"]
[null,null,null,null,null,null,null,null,null,null,null,null,null,null,null,null,null,null,null,"Q86","RVN","AVON AND WILTSHIRE MENTAL HEALTH PARTNERSHIP NHS TRUST","Specialist Services"]
[null,null,null,null,null,null,null,null,null,null,null,null,null,null,null,null,null,null,null,"Q87","RWX","BERKSHIRE HEALTHCARE NHS FOUNDATION TRUST","Acute Services"]
[null,null,null,null,null,null,null,null,null,null,null,null,null,null,null,null,null,null,null,"Q87","RWX","BERKSHIRE HEALTHCARE NHS FOUNDATION TRUST","Child & Adolescent Mental Health Services"]
[null,null,null,null,null,null,null,null,null,null,null,null,null,null,null,null,null,null,null,"Q87","RWX","BERKSHIRE HEALTHCARE NHS FOUNDATION TRUST","Mental Health Other"]
[null,null,null,null,null,null,null,null,null,null,null,null,null,null,null,null,null,null,null,"Q87","RWX","BERKSHIRE HEALTHCARE NHS FOUNDATION TRUST","Primary Care"]
[null,null,null,null,null,null,null,null,null,null,null,null,null,null,null,null,null,null,null,"Q87","RWX","BERKSHIRE HEALTHCARE NHS FOUNDATION TRUST","Secondary Care Community Services"]
[null,null,null,null,null,null,null,null,null,null,null,null,null,null,null,null,null,null,null,"Q87","RWX","BERKSHIRE HEALTHCARE NHS FOUNDATION TRUST","Specialist Services"]
[null,null,null,null,null,null,null,null,null,null,null,null,null,null,null,null,null,null,null,"Q87","R1F","ISLE OF WIGHT NHS TRUST","Acute Services"]
[null,null,null,null,null,null,null,null,null,null,null,null,null,null,null,null,null,null,null,"Q87","R1F","ISLE OF WIGHT NHS TRUST","Primary Care"]
[null,null,null,null,null,null,null,null,null,null,null,null,null,null,null,null,null,null,null,"Q87","R1F","ISLE OF WIGHT NHS TRUST","Secondary Care Community Services"]
[null,null,null,null,null,null,null,null,null,null,null,null,null,null,null,null,null,null,null,"Q87","RNU","OXFORD HEALTH NHS FOUNDATION TRUST","Acute Services"]
[null,null,null,null,null,null,null,null,null,null,null,null,null,null,null,null,null,null,null,"Q87","RNU","OXFORD HEALTH NHS FOUNDATION TRUST","Child & Adolescent Mental Health Services"]
[null,null,null,null,null,null,null,null,null,null,null,null,null,null,null,null,null,null,null,"Q87","RNU","OXFORD HEALTH NHS FOUNDATION TRUST","Primary Care"]
[null,null,null,null,null,null,null,null,null,null,null,null,null,null,null,null,null,null,null,"Q87","RNU","OXFORD HEALTH NHS FOUNDATION TRUST","Secondary Care Community Services"]
[null,null,null,null,null,null,null,null,null,null,null,null,null,null,null,null,null,null,null,"Q87","RNU","OXFORD HEALTH NHS FOUNDATION TRUST","Secure & Forensic Services"]
[null,null,null,null,null,null,null,null,null,null,null,null,null,null,null,null,null,null,null,"Q87","RNU","OXFORD HEALTH NHS FOUNDATION TRUST","Specialist Services"]
[null,null,null,null,null,null,null,null,null,null,null,null,null,null,null,null,null,null,null,"Q87","R1C","SOLENT NHS TRUST","Acute Services"]
[null,null,null,null,null,null,null,null,null,null,null,null,null,null,null,null,null,null,null,"Q87","R1C","SOLENT NHS TRUST","Child & Adolescent Mental Health Services"]
[null,null,null,null,null,null,null,null,null,null,null,null,null,null,null,null,null,null,null,"Q87","R1C","SOLENT NHS TRUST","Secondary Care Community Services"]
[null,null,null,null,null,null,null,null,null,null,null,null,null,null,null,null,null,null,null,"Q87","RW1","SOUTHERN HEALTH NHS FOUNDATION TRUST","Acute Services"]
[null,null,null,null,null,null,null,null,null,null,null,null,null,null,null,null,null,null,null,"Q87","RW1","SOUTHERN HEALTH NHS FOUNDATION TRUST","Child & Adolescent Mental Health Services"]
[null,null,null,null,null,null,null,null,null,null,null,null,null,null,null,null,null,null,null,"Q87","RW1","SOUTHERN HEALTH NHS FOUNDATION TRUST","Mental Health Other"]
[null,null,null,null,null,null,null,null,null,null,null,null,null,null,null,null,null,null,null,"Q87","RW1","SOUTHERN HEALTH NHS FOUNDATION TRUST","Primary Care"]
[null,null,null,null,null,null,null,null,null,null,null,null,null,null,null,null,null,null,null,"Q87","RW1","SOUTHERN HEALTH NHS FOUNDATION TRUST","Secondary Care Community Services"]
[null,null,null,null,null,null,null,null,null,null,null,null,null,null,null,null,null,null,null,"Q88","RXY","KENT AND MEDWAY NHS AND SOCIAL CARE PARTNERSHIP TRUST","Acute Services"]
[null,null,null,null,null,null,null,null,null,null,null,null,null,null,null,null,null,null,null,"Q88","RXY","KENT AND MEDWAY NHS AND SOCIAL CARE PARTNERSHIP TRUST","Secondary Care Community Services"]
[null,null,null,null,null,null,null,null,null,null,null,null,null,null,null,null,null,null,null,"Q88","RXY","KENT AND MEDWAY NHS AND SOCIAL CARE PARTNERSHIP TRUST","Secure & Forensic Services"]
[null,null,null,null,null,null,null,null,null,null,null,null,null,null,null,null,null,null,null,"Q88","RXX","SURREY AND BORDERS PARTNERSHIP NHS FOUNDATION TRUST","Acute Services"]
[null,null,null,null,null,null,null,null,null,null,null,null,null,null,null,null,null,null,null,"Q88","RXX","SURREY AND BORDERS PARTNERSHIP NHS FOUNDATION TRUST","Child & Adolescent Mental Health Services"]
[null,null,null,null,null,null,null,null,null,null,null,null,null,null,null,null,null,null,null,"Q88","RXX","SURREY AND BORDERS PARTNERSHIP NHS FOUNDATION TRUST","Secondary Care Community Services"]
[null,null,null,null,null,null,null,null,null,null,null,null,null,null,null,null,null,null,null,"Q88","RX2","SUSSEX PARTNERSHIP NHS FOUNDATION TRUST","Acute Services"]
[null,null,null,null,null,null,null,null,null,null,null,null,null,null,null,null,null,null,null,"Q88","RX2","SUSSEX PARTNERSHIP NHS FOUNDATION TRUST","Child & Adolescent Mental Health Services"]
[null,null,null,null,null,null,null,null,null,null,null,null,null,null,null,null,null,null,null,"Q88","RX2","SUSSEX PARTNERSHIP NHS FOUNDATION TRUST","Secondary Care Community Services"]
[null,null,null,null,null,null,null,null,null,null,null,null,null,null,null,null,null,null,null,"Q88","RX2","SUSSEX PARTNERSHIP NHS FOUNDATION TRUST","Secure & Forensic Services"]
[null,null,null,null,null,null,null,null,null,null,null,null,null,null,null,null,null,null,null,"Q88","RX2","SUSSEX PARTNERSHIP NHS FOUNDATION TRUST","Specialist Services"]
[null,null,null,null,null,null,null,null,null,null,null,null,null,null,null,null,null,null,null,"IS1","NNF","CITY HEALTH CARE PARTNERSHIP CIC","Mental Health Other"]
[null,null,null,null,null,null,null,null,null,null,null,null,null,null,null,null,null,null,null,"IS1","NNF","CITY HEALTH CARE PARTNERSHIP CIC","Primary Care"]
[null,null,null,null,null,null,null,null,null,null,null,null,null,null,null,null,null,null,null,"IS1","NNF","CITY HEALTH CARE PARTNERSHIP CIC","Specialist Services"]
[null,null,null,null,null,null,null,null,null,null,null,null,null,null,null,null,null,null,null,"IS1","NMJ","CYGNET HEALTH CARE LIMITED","Specialist Services"]
[null,null,null,null,null,null,null,null,null,null,null,null,null,null,null,null,null,null,null,"IS1","DE8","ELYSIUM HEALTHCARE","Mental Health Other"]
[null,null,null,null,null,null,null,null,null,null,null,null,null,null,null,null,null,null,null,"IS1","NWX","HERE","Primary Care"]
[null,null,null,null,null,null,null,null,null,null,null,null,null,null,null,null,null,null,null,"IS1","NR5","LIVEWELL SOUTHWEST","Acute Services"]
[null,null,null,null,null,null,null,null,null,null,null,null,null,null,null,null,null,null,null,"IS1","NR5","LIVEWELL SOUTHWEST","Child & Adolescent Mental Health Services"]
[null,null,null,null,null,null,null,null,null,null,null,null,null,null,null,null,null,null,null,"IS1","NR5","LIVEWELL SOUTHWEST","Primary Care"]
[null,null,null,null,null,null,null,null,null,null,null,null,null,null,null,null,null,null,null,"IS1","NR5","LIVEWELL SOUTHWEST","Secondary Care Community Services"]
[null,null,null,null,null,null,null,null,null,null,null,null,null,null,null,null,null,null,null,"IS1","NR5","LIVEWELL SOUTHWEST","Specialist Services"]
[null,null,null,null,null,null,null,null,null,null,null,null,null,null,null,null,null,null,null,"IS1","NQL","NAVIGO HEALTH AND SOCIAL CARE CIC","Mental Health Other"]
[null,null,null,null,null,null,null,null,null,null,null,null,null,null,null,null,null,null,null,"IS1","AM5","OUTLOOK SW LTD","Primary Care"]
[null,null,null,null,null,null,null,null,null,null,null,null,null,null,null,null,null,null,null,"IS1","NV2","THE HUNTERCOMBE GROUP","Child & Adolescent Mental Health Services"]
[null,null,null,null,null,null,null,null,null,null,null,null,null,null,null,null,null,null,null,"IS1","NV2","THE HUNTERCOMBE GROUP","Mental Health Other"]
[null,null,null,null,null,null,null,null,null,null,null,null,null,null,null,null,null,null,null,"IS1","NDK","YARBOROUGH CLEE CARE LIMITED","Secondary Care Community Services"]